{"text_format":"2","workbook":"xlsx","n_sheets":1,"sheets":["Sheet1"],"not_rendered":{"charts":0,"images":0,"macros":0,"external_links":0,"defined_names":0,"comments":0,"pivot_tables":0},"unopened":[],"bounds":{"document_bytes":16777216,"sheet_cells":100000,"run_cost":"one","rows_first":2000,"rows_last":500,"rows_between":2000,"halvings":0,"cell_chars":16384,"cell_head_chars":4096},"cells_cut":0,"cells_raw":0,"read":"whole","date_system":"1900"}

{"sheet":"Sheet1","index":0,"n_rows":685,"n_cols":7,"rows_kept":685,"cut":false,"hidden":false,"merged":[]}
[]
[]
[]
[]
[]
[]
[{"$nulls":5},"    "]
[]
[{"$nulls":5},"IRISH STUDENT CAMPAIGN "]
[]
["Irish Local Development Networks/Partnerships :    Act as a bridge between community and statuary services."]
["Public Participation Networks :  Provide the opportunity for engagement between local people and local authorities. Details found in County Council Office Websites. "]
["Social Inclusion & Community Activation Programme (SICAP) : Local engagement between the disadvantaged and community organisations / public sector agencies."]
["County Council Offices: Contain very useful contact information on local community activity & agendas. "]
[]
["ADVICE:","Check websites for updated local information before making contact."]
[]
[]
["COUNTY","DEVELOPMENT/COMMUNITY NETWORK","TELEPHONE NUMBERS","WEBSITE INFORMATION","DEV/SOCIAL INCLUSION OFFICERS","EMAIL","MEDIA "]
[]
[]
["CARLOW","Carlow County Dev. Partnership","059-9720733",{"$f":"HYPERLINK(\"http://www.carlowdevelopment.ie\",\"www.carlowdevelopment.ie\")","v":"www.carlowdevelopment.ie"},"Karl Duffy",{"$f":"HYPERLINK(\"mailto:info@carlowdevelopment.ie\",\"info@carlowdevelopment.ie\")","v":"info@carlowdevelopment.ie"},"FB/L-in/Twitter"]
[{"$nulls":4},"Annette Fox "]
[]
[null,"Inclusion Ireland / Delta Centre","059 9143527",{"$f":"HYPERLINK(\"http://www.inclusionireland.ie\",\"www.inclusionireland.ie\")","v":"www.inclusionireland.ie"},"Eileen Brophy",{"$f":"HYPERLINK(\"mailto:info@inclusionireland.ie\",\"info@inclusionireland.ie\")","v":"info@inclusionireland.ie"},"FB/L-in/Twitter"]
[{"$nulls":6}," "]
[]
[null,"Carlow Sports Inclusion Disability","087 2568189",null,"Joanne Wall ",{"$f":"HYPERLINK(\"mailto:jwall@carlowcoco.ie\",\"jwall@carlowcoco.ie\")","v":"jwall@carlowcoco.ie"}," "]
[]
[]
[null,"Carlow Public Participation Network","059 91724954",{"$f":"HYPERLINK(\"https://www.localenterprise.ie/Carlow/Enterprise-Development/Public-Participation-Network-PPN-/\",\"https://www.localenterprise.ie/Carlow/Enterprise-Development/Public-Participation-Network-PPN-/\")","v":"https://www.localenterprise.ie/Carlow/Enterprise-Development/Public-Participation-Network-PPN-/"},"Joanne Donohoe",{"$f":"HYPERLINK(\"http://www.carlowppn.ie\",\"www.carlowppn.ie\")","v":"www.carlowppn.ie"},"FB/Twitter/L-In"]
[{"$nulls":4},"John Murphy"]
[{"$nulls":4},"Thomas Kelly"]
[{"$nulls":4},"Regina Duane "]
[null,"St. Catherine's Community Service","059 9138700",{"$f":"HYPERLINK(\"http://www.catherines.ie\",\"www.catherines.ie\")","v":"www.catherines.ie"},"Nial Morris",{"$f":"HYPERLINK(\"mailto:niallm@catherines.ie\",\"niallm@catherines.ie\")","v":"niallm@catherines.ie"}]
[{"$nulls":4},"Thomas Farrell",{"$f":"HYPERLINK(\"mailto:thomasf@catherines.ie\",\"thomasf@catherines.ie\")","v":"thomasf@catherines.ie"}]
[null,"Carlow County Council (SICAP)","059 9170300",{"$f":"HYPERLINK(\"http://www.carlow.ie\",\"www.carlow.ie\")","v":"www.carlow.ie"},"Michael Brennan",{"$f":"HYPERLINK(\"mailto:mbrennan@carlowcoco.ie\",\"mbrennan@carlowcoco.ie\")","v":"mbrennan@carlowcoco.ie"}]
[{"$nulls":5},{"$f":"HYPERLINK(\"mailto:secretar@carlowcoco.ie\",\"secretar@carlowcoco.ie\")","v":"secretar@carlowcoco.ie"}]
[]
["CAVAN","Breffni Integrated Ltd","049 4331029",{"$f":"HYPERLINK(\"http://www.cldc.ie\",\"http://www.breffniint.ie/\")","v":"http://www.breffniint.ie/"},"Una Trainer ",{"$f":"HYPERLINK(\"mailto:info@breffniint.ie\",\"info@breffniint.ie\")","v":"info@breffniint.ie"}]
[{"$nulls":4},"Hazel Leahy"]
[{"$nulls":4},"Lorraine McTeigue "]
[null,"Cavan Public Participation Network","086 3512308",{"$f":"HYPERLINK(\"http://www.cavancommunity.ie\",\"www.cavancommunity.ie\")","v":"www.cavancommunity.ie"},"Daniel Downey "]
[{"$nulls":4},"Marisa Goldstone"]
[]
[null,"Cavan & Monaghan Community Area Svcs","049 9527384/5",{"$f":"HYPERLINK(\"http://www.camcas.ie/about-us/\",\"www.camcas.ie/about-us/\")","v":"www.camcas.ie/about-us/"},"Ann McCarren ",{"$f":"HYPERLINK(\"mailto:Info@camcas.ie\",\"Info@camcas.ie\")","v":"Info@camcas.ie"},"FB"]
[null,"West Cavan",null,null,"Frankei McMorrow"]
[null,"North Monaghan ",null,null,"Frank Smith"]
[null,"East Cavan",null,null,"John Michael O'Donoghue "]
[]
[null,"South West Cavan Comm Dev Project","049 4336070",{"$f":"HYPERLINK(\"http://www.southwestcavancdp.ie\",\"www.southwestcavancdp.ie\")","v":"www.southwestcavancdp.ie"},"Hazel Leahy",{"$f":"HYPERLINK(\"mailto:southwestcavancdp@eircom.net\",\"southwestcavancdp@eircom.net\")","v":"southwestcavancdp@eircom.net"}," "]
[]
[null,"Cavan County Council (SICAP)","049 437 8300",{"$f":"HYPERLINK(\"http://www.cavancoco.ie\",\"www.cavancoco.ie\")","v":"www.cavancoco.ie"},"John Donohoe",{"$f":"HYPERLINK(\"mailto:jdonohoe@cavancoco.ie\",\"jdonohoe@cavancoco.ie\")","v":"jdonohoe@cavancoco.ie"}]
[]
["CLARE","Clare Local Dev Company","065 686 6800",{"$f":"HYPERLINK(\"http://www.cldc.ie\",\"www.cldc.ie\")","v":"www.cldc.ie"},"Darina Green ",{"$f":"HYPERLINK(\"mailto:info@cldc.ie\",\"info@cldc.ie\")","v":"info@cldc.ie"},"FB/Twitter"]
[]
[null,"Clare Public Participation Network","087 1617375",{"$f":"HYPERLINK(\"http://www.clareppn.ie\",\"www.clareppn.ie\")","v":"www.clareppn.ie"},"Sarah Clancy",null,"FB/ Twitter"]
[{"$nulls":4},"Cillian Murphy"]
[{"$nulls":4},"Jean Tierney "]
[null,"Directory of Community Groups",null,{"$f":"HYPERLINK(\"http://www.clarelibrary.ie/eolas/\",\"www.clarelibrary.ie/eolas/\")","v":"www.clarelibrary.ie/eolas/"},"Couns.Patricia McCarthy"]
[{"$nulls":4},"Bernadette Kinsella "]
[]
[null,"Clare  Women's Network","065 6828731/6829388",null,"Elaine Dalton",{"$f":"HYPERLINK(\"mailto:clarewomen@eircom.net\",\"clarewomen@eircom.net\")","v":"clarewomen@eircom.net"},"FB"]
[]
[null,"Clare Immigrant Support Centre ","065 682 2026",{"$f":"HYPERLINK(\"http://www.clareimmigrantsupportcentre.com/index.php/useful-contacts\",\"http://www.clareimmigrantsupportcentre.com/index.php/useful-contacts\")","v":"http://www.clareimmigrantsupportcentre.com/index.php/useful-contacts"}," ",{"$f":"HYPERLINK(\"mailto:cisc@eircom.net\",\"cisc@eircom.net\")","v":"cisc@eircom.net"}]
[]
[null,"Clare Volunteer Centre","065 6866 800",{"$f":"HYPERLINK(\"http://www.volunteerclare.ie\",\"www.volunteerclare.ie\")","v":"www.volunteerclare.ie"},null,{"$f":"HYPERLINK(\"mailto:info@volunteerclare.ie\",\"info@volunteerclare.ie\")","v":"info@volunteerclare.ie"},"FB/Twitter"]
[null,"Irish Refugee Council / Co. Clare","065 6822026",null,null,{"$f":"HYPERLINK(\"mailto:info@irishrefugeecouncil.ie\",\"info@irishrefugeecouncil.ie\")","v":"info@irishrefugeecouncil.ie"}]
[]
[null,"Ennis Community Dev Project","065 6869026","http://www.clarelearningnetwork.org/clln/www/index.asp?magpage=5&tid=3870","Collete Bradley",{"$f":"HYPERLINK(\"mailto:cbenniscdp@eircom.net\",\"cbenniscdp@eircom.net\")","v":"cbenniscdp@eircom.net"},"FB"]
[]
[null,"Clare County Council (SICAP)","065 628 1616",{"$f":"HYPERLINK(\"http://www.clarecoco.ie\",\"www.clarecoco.ie\")","v":"www.clarecoco.ie"},"Monica Meehan",{"$f":"HYPERLINK(\"mailto:mmeehan@clarecoco.ie\",\"mmeehan@clarecoco.ie\")","v":"mmeehan@clarecoco.ie"}]
[{"$nulls":5},{"$f":"HYPERLINK(\"mailto:info@clarecoco.ie\",\"info@clarecoco.ie\")","v":"info@clarecoco.ie"}]
[]
["CORK","Avondhu Blackwater Partnership","022 46580",{"$f":"HYPERLINK(\"http://www.avondhublackwater.com/\",\"www.avondhublackwater.com/\")","v":"www.avondhublackwater.com/"},"Mary Gubbons",{"$f":"HYPERLINK(\"mailto:maryg@avondhublackwater.com\",\"maryg@avondhublackwater.com\")","v":"maryg@avondhublackwater.com"},"FB/Twitter"]
[{"$nulls":4},"Veronica Gubbons ",{"$f":"HYPERLINK(\"mailto:veronica@avondhublackwater.com\",\"veronica@avondhublackwater.com\")","v":"veronica@avondhublackwater.com"}]
[]
[null,"Cork County Public Participation Network",null,{"$f":"HYPERLINK(\"http://www.corkcountyppn.com\",\"www.corkcountyppn.com\")","v":"www.corkcountyppn.com"},"Noelle Desmond",{"$f":"HYPERLINK(\"mailto:ppn@corkcoco.ie\",\"ppn@corkcoco.ie\")","v":"ppn@corkcoco.ie"}]
[{"$nulls":4},"Dolores Corcoran"]
[{"$nulls":4},"Diarmuid Cronin"]
[null,"Cork City County Council","021 492 4999",null,"Paul Moynihan",{"$f":"HYPERLINK(\"mailto:paul_moynihan@corkcity.ie\",\"paul_moynihan@corkcity.ie\")","v":"paul_moynihan@corkcity.ie"}]
[]
[null,"Cork County (SICAP)",null,{"$f":"HYPERLINK(\"http://www.corkcoco.ie\",\"www.corkcoco.ie\")","v":"www.corkcoco.ie"},"Niall Healy",{"$f":"HYPERLINK(\"mailto:niall.healy@corkCoCo.ie\",\"niall.healy@corkCoCo.ie\")","v":"niall.healy@corkCoCo.ie"}]
[{"$nulls":5},{"$f":"HYPERLINK(\"mailto:siu@corkcity.ie\",\"siu@corkcity.ie\")","v":"siu@corkcity.ie"}]
[null,"West Cork LCDC",null,{"$f":"HYPERLINK(\"http://www.corkcoco.ie\",\"www.corkcoco.ie\")","v":"www.corkcoco.ie"},"Finbar Harrington",null,"Twitter"]
[{"$nulls":4},"Cathal Wilson"]
[null,"North Cork LCDC",null,{"$f":"HYPERLINK(\"http://www.corkcoco.ie\",\"www.corkcoco.ie\")","v":"www.corkcoco.ie"},"Brid Coakley"]
[{"$nulls":4},"Sean Kelly"]
[null,"South Cork LCDC",null,{"$f":"HYPERLINK(\"http://www.corkcoco.ie\",\"www.corkcoco.ie\")","v":"www.corkcoco.ie"},"Peter Dineen"]
[{"$nulls":4},"Martin O'Brien "]
[]
[" ","IRD Duhallow","029 60633",{"$f":"HYPERLINK(\"http://www.irdduhallow.com\",\"www.irdduhallow.com\")","v":"www.irdduhallow.com"},"Helen O'Sullivan",null,"FB/Twitter/L-in "]
[{"$nulls":4},"Katie Crowley "]
[]
[null,"South & East Cork Area Development","021 4613432",{"$f":"HYPERLINK(\"http://www.secad.ie\",\"www.secad.ie\")","v":"www.secad.ie"},"Sinead Conroy",{"$f":"HYPERLINK(\"mailto:sconroy@secad.ie\",\"sconroy@secad.ie\")","v":"sconroy@secad.ie"}]
[{"$nulls":4},"Nuala O'Connell",{"$f":"HYPERLINK(\"mailto:noconnell@secad.ie\",\"noconnell@secad.ie\")","v":"noconnell@secad.ie"}]
[]
[null,"West Cork Development Partnership",null,{"$f":"HYPERLINK(\"http://www.wcdp.ie\",\"www.wcdp.ie\")","v":"www.wcdp.ie"},null,null,"Twitter"]
[null,null,"023 8834035 (Clonakilty) ",null,"Ms. Arran O'Driscoll",{"$f":"HYPERLINK(\"mailto:arran@wcdp.ie\",\"arran@wcdp.ie\")","v":"arran@wcdp.ie"}]
[null,null,"027 52266 (Bantry)",null,"Fergal Conlon",{"$f":"HYPERLINK(\"mailto:fergal@wcdp.ie\",\"fergal@wcdp.ie\")","v":"fergal@wcdp.ie"}]
[{"$nulls":4},"Kathryn Kingston",{"$f":"HYPERLINK(\"mailto:kathryn@wcdp.ie\",\"kathryn@wcdp.ie\")","v":"kathryn@wcdp.ie"}]
[{"$nulls":4},"Joe Cronin",{"$f":"HYPERLINK(\"mailto:joe@wcdp.ie\",\"joe@wcdp.ie\")","v":"joe@wcdp.ie"}]
[]
[null,"Cork City Partnership","021 4302310",{"$f":"HYPERLINK(\"http://www.corkcitypartnership.ie\",\"www.corkcitypartnership.ie\")","v":"www.corkcitypartnership.ie"}]
[]
[null,null,"021 4550519 (Mayfield)"," ","Donie O'Leary",{"$f":"HYPERLINK(\"mailto:doleary@partnershipcork.ie\",\"doleary@partnershipcork.ie\")","v":"doleary@partnershipcork.ie"}]
[null,null,"021 4550943 (The Glen)",null,"Ann Long",{"$f":"HYPERLINK(\"mailto:imckernan@partnershipcork.ie\",\"imckernan@partnershipcork.ie\")","v":"imckernan@partnershipcork.ie"}]
[null,null,"021 4301700",null,"Mary Sheehy",{"$f":"HYPERLINK(\"mailto:msheehy@partnershipcork.ie\",\"msheehy@partnershipcork.ie\")","v":"msheehy@partnershipcork.ie"}]
[null,null,"021 4399503",null,"Noreen O'Regan",{"$f":"HYPERLINK(\"mailto:noreen.oregan@partnershipcork.ie\",\"noreen.oregan@partnershipcork.ie\")","v":"noreen.oregan@partnershipcork.ie"}]
[]
[null,"Cork City Community Directory","021 4924060",{"$f":"HYPERLINK(\"http://www.corkcity.ie/services/\",\"www.corkcity.ie/services/\")","v":"www.corkcity.ie/services/"},"Tony Power",{"$f":"HYPERLINK(\"mailto:tony_power@corkcity.ie\",\"tony_power@corkcity.ie\")","v":"tony_power@corkcity.ie"}]
[]
[null,"Cork City Council","021 496 6222","http://www.corkcity.ie/yourcommunity/"," "]
[]
[null,"Cork Volunteer Centre","021 425 1572","http://www.volunteercork.ie/meet-the-team/"," ","info@volunteercork.ie","FB/Twitter/L-In"]
[]
[null,"NASC, Immigrant Support Centre",null,{"$f":"HYPERLINK(\"http://www.nascireland.org/about/contact-us/\",\"www.nascireland.org/about/contact-us/\")","v":"www.nascireland.org/about/contact-us/"},"Jennifer DeWan",{"$f":"HYPERLINK(\"mailto:info@nascireland.org\",\"info@nascireland.org\")","v":"info@nascireland.org"},"FB/Twitter "]
[]
[]
[null,"The Social & Health Education Project","021 4666180","http://www.socialandhealth.com/shep-cork/",null,{"$f":"HYPERLINK(\"mailto:socialandhealth@eircom.net\",\"socialandhealth@eircom.net\")","v":"socialandhealth@eircom.net"},"Twitter"]
[]
[null,"Mahon Comm Dev Project","021 4359070",null,"Vid Sadd",{"$f":"HYPERLINK(\"mailto:info@mahoncdp.com\",\"info@mahoncdp.com\")","v":"info@mahoncdp.com"},"FB"]
[]
[null,"New Communities Partnership","021 2399 910","http://www.newcommunities.ie/contact/"," ",{"$f":"HYPERLINK(\"mailto:ncpcork@gmail.com\",\"ncpcork@gmail.com\")","v":"ncpcork@gmail.com"}]
[]
["DONEGAL","Donegal Local Dev. Compay","074 9127056",{"$f":"HYPERLINK(\"http://www.didc.org\",\"www.didc.org\")","v":"www.didc.org"},"Stephen Barrett",{"$f":"HYPERLINK(\"mailto:sbarrett@dldc.org\",\"sbarrett@dldc.org\")","v":"sbarrett@dldc.org"},"FB / Twitter"]
[{"$nulls":4},"Margaret Larkin",{"$f":"HYPERLINK(\"mailto:mlarkin@dldc.org\",\"mlarkin@dldc.org\")","v":"mlarkin@dldc.org"}]
[{"$nulls":4},"Lourda Nee ",{"$f":"HYPERLINK(\"mailto:lnee@dldc.org\",\"lnee@dldc.org\")","v":"lnee@dldc.org"}]
[{"$nulls":4},"Kathleen Gallagher",{"$f":"HYPERLINK(\"mailto:kgallagher@dldc.org\",\"kgallagher@dldc.org\")","v":"kgallagher@dldc.org"}]
[]
[null,"Inishowen Development Partnership",null,{"$f":"HYPERLINK(\"http://www.inishowen.ie\",\"www.inishowen.ie\")","v":"www.inishowen.ie"},null,null,"FB / "]
[null,null,"074 9362218 (Buncrana)",null,"Mary McCallion",{"$f":"HYPERLINK(\"mailto:mmccallion@inishowen.ie\",\"mmccallion@inishowen.ie\")","v":"mmccallion@inishowen.ie"}]
[null,null,"074 9373083 (Inishowen",null,"Carmel",{"$f":"HYPERLINK(\"mailto:carmel@inishowen.ie\",\"carmel@inishowen.ie\")","v":"carmel@inishowen.ie"}]
[{"$nulls":4},"Dessie McCallion"]
[{"$nulls":4},"Kathleen McGonagle "]
[]
[null,"Co Donegal Public Particip. Network",null,{"$f":"HYPERLINK(\"mailto:codonnell@donegalcoco.ie\",\"codonnell@donegalcoco.ie\")","v":"codonnell@donegalcoco.ie"}]
[]
[null,"Donegal Co. Co. (SICAP)","074 915 3900",{"$f":"HYPERLINK(\"http://www.donegalcoco.ie\",\"www.donegalcoco.ie\")","v":"www.donegalcoco.ie"},"Paddy Doherty",{"$f":"HYPERLINK(\"mailto:paddy.doherty@donegalcoco.ie\",\"paddy.doherty@donegalcoco.ie\")","v":"paddy.doherty@donegalcoco.ie"}]
[{"$nulls":5},{"$f":"HYPERLINK(\"mailto:info@donegalcoco.ie\",\"info@donegalcoco.ie\")","v":"info@donegalcoco.ie"}]
[null,"Donegal County Devel. Board",null,{"$f":"HYPERLINK(\"http://www.donegalcdb.ie/cdb/communityandvoluntarysectordirectory\",\"www.donegalcdb.ie/cdb/communityandvoluntarysectordirectory\")","v":"www.donegalcdb.ie/cdb/communityandvoluntarysectordirectory"}," "]
[]
[null,"Donegal Women's Network ","074 9722790",{"$f":"HYPERLINK(\"https://donegalwomensnetwork.wordpress.com/\",\"https://donegalwomensnetwork.wordpress.com/\")","v":"https://donegalwomensnetwork.wordpress.com/"}," ",{"$f":"HYPERLINK(\"mailto:donwomnet@eircom.net\",\"donwomnet@eircom.net\")","v":"donwomnet@eircom.net"},"FB/Twitter/L-In"]
[null,null,"074 9132023",null,"Finola Brennan"]
[]
[null,"Donegal Town Asylum/Refugge Support Group","087 2702007"]
[]
[null,"Letterkenny Coummunity Dev Project","074 912 0633",null,"Margaret Toner",{"$f":"HYPERLINK(\"mailto:lkennycdp@eircom.net\",\"lkennycdp@eircom.net\")","v":"lkennycdp@eircom.net"},"FB"]
[]
[null,"Lifford/Clonleigh Comm.Dev.Project","074/914 1773 / 914 2109",{"$f":"HYPERLINK(\"http://www.liffordclonleighresourcecentre.com/\",\"http://www.liffordclonleighresourcecentre.com/\")","v":"http://www.liffordclonleighresourcecentre.com/"},"Brid Foley",{"$f":"HYPERLINK(\"mailto:liffclonrc@eircom.net\",\"liffclonrc@eircom.net\")","v":"liffclonrc@eircom.net"},"FB"]
[]
[null,"S.W. Donegal Comm. Partnership ","074 974 1863",null,"Margaret Doherty",{"$f":"HYPERLINK(\"mailto:margaretswdcpl@eircom.net\",\"margaretswdcpl@eircom.net\")","v":"margaretswdcpl@eircom.net"},"FB"]
[]
[null,"Action Inishowen Comm.Dev.Project","074 937 4529",{"$f":"HYPERLINK(\"http://www.actioninishowen.com\",\"www.actioninishowen.com\")","v":"www.actioninishowen.com"},"Margaret Glackin",{"$f":"HYPERLINK(\"mailto:info@actioninishowen.com\",\"info@actioninishowen.com\")","v":"info@actioninishowen.com"},"FB"]
[]
[null,"Pobail Le Cheile Comm.Dev.Project","074 918 0111",{"$f":"HYPERLINK(\"http://www.pobaillc.com\",\"www.pobaillc.com\")","v":"www.pobaillc.com"},"Paul Kernan",{"$f":"HYPERLINK(\"mailto:pobaillc@eircom.net\",\"pobaillc@eircom.net\")","v":"pobaillc@eircom.net"},"FB"]
[]
[null,"The Rosses Comm.Dev. Project","074 956 1686",{"$f":"HYPERLINK(\"http://www.rossescdp.ie\",\"www.rossescdp.ie\")","v":"www.rossescdp.ie"},"Nora Breslin",{"$f":"HYPERLINK(\"mailto:rossescdp@eircom.net\",\"rossescdp@eircom.net\")","v":"rossescdp@eircom.net"},"FB"]
[]
[null,"Donegal Travellers Comm Dev Project","074 9129281",null,"Siobhan McLaughlin",{"$f":"HYPERLINK(\"mailto:dtp@eircom.net\",\"dtp@eircom.net\")","v":"dtp@eircom.net"},"FB"]
[{"$nulls":5},{"$f":"HYPERLINK(\"mailto:Travcom@eircom.net\",\"Travcom@eircom.net\")","v":"Travcom@eircom.net"}]
["DUBLIN","Ballyfermot/Chapelizod Partnership","01 6235612",{"$f":"HYPERLINK(\"http://www.ballyfermotpartnership.ie\",\"www.ballyfermotpartnership.ie\")","v":"www.ballyfermotpartnership.ie"},"Declan Markey",null,"FB/"]
[]
[null,null,"01 623 8088",null,"Catherine Lane",{"$f":"HYPERLINK(\"mailto:clane@ballyfermotpartnership.ie\",\"clane@ballyfermotpartnership.ie\")","v":"clane@ballyfermotpartnership.ie"}," "]
[null,null,"087 7387769",null,"Christine Murray",{"$f":"HYPERLINK(\"mailto:cmurray@ballyfermotpartnership.ie\",\"cmurray@ballyfermotpartnership.ie\")","v":"cmurray@ballyfermotpartnership.ie"}," "]
[null,null,"01 8989162",null,"Declan Markey",{"$f":"HYPERLINK(\"mailto:dmarkey@ballyfermotpartnership.ie\",\"dmarkey@ballyfermotpartnership.ie\")","v":"dmarkey@ballyfermotpartnership.ie"}," "]
[]
[null,"Innovate Dublin (Ballymun)","01 8423612",{"$f":"HYPERLINK(\"http://www.innovatedublin.org\",\"www.innovatedublin.org\")","v":"www.innovatedublin.org"},"Fiona Descoteaux",{"$f":"HYPERLINK(\"mailto:fiona@innovatedublin.org\",\"fiona@innovatedublin.org\")","v":"fiona@innovatedublin.org"},"FB/Twitter"]
[]
[]
[null,"Blanchardstown Area Partnership",null,{"$f":"HYPERLINK(\"http://www.bap.ie\",\"www.bap.ie\")","v":"www.bap.ie"},"Nuala Kane ",{"$f":"HYPERLINK(\"mailto:nkane@bap.ie\",\"nkane@bap.ie\")","v":"nkane@bap.ie"},"FB/Twitter"]
[]
[null,"Coolmine :  01 8209550",null,null,"Pauline Mangan ",{"$f":"HYPERLINK(\"mailto:pmangan@bap.ie\",\"pmangan@bap.ie\")","v":"pmangan@bap.ie"}]
[null,"Mulhuddart : 01 8262342",null,null,"Monica Shannon ",{"$f":"HYPERLINK(\"mailto:mshannon@bap.ie\",\"mshannon@bap.ie\")","v":"mshannon@bap.ie"}]
[null,"Balbriggan : 1890 100019",null,null,"Graham Fitzpatrick "]
[]
[null,"Dublin South City Partnership"]
[null,"(also known as, Canal Communities Partnership)",null,{"$f":"HYPERLINK(\"http://www.dublinsouthcitypartnership.ie\",\"www.dublinsouthcitypartnership.ie\")","v":"www.dublinsouthcitypartnership.ie"},"John Burns",{"$f":"HYPERLINK(\"mailto:jburns@dscp.ie\",\"jburns@dscp.ie\")","v":"jburns@dscp.ie"},"FB/Twitter"]
[null,null,"01 4732196"]
[null,"Canal Communities Partnership","01 473 2196",{"$f":"HYPERLINK(\"http://www.canalpartnership.com\",\"www.canalpartnership.com\")","v":"www.canalpartnership.com"},null,{"$f":"HYPERLINK(\"mailto:info@canalpartnership.com\",\"info@canalpartnership.com\")","v":"info@canalpartnership.com"}]
[null,null,"01 460 1366",null,null,{"$f":"HYPERLINK(\"mailto:admin@bluebellcdp.com\",\"admin@bluebellcdp.com\")","v":"admin@bluebellcdp.com"}]
[null,null,"01 454 4682",null,null,{"$f":"HYPERLINK(\"mailto:dolphincda@gmail.com\",\"dolphincda@gmail.com\")","v":"dolphincda@gmail.com"}]
[null,null,"01 473 2003",null,null,{"$f":"HYPERLINK(\"mailto:rialtonet@connect.ie\",\"rialtonet@connect.ie\")","v":"rialtonet@connect.ie"}]
[]
[null,"South Dublin County Council (SICAP)","01 414 9000","sdublincoco.ie","philip Murphy",{"$f":"HYPERLINK(\"mailto:pmurphy@sdublincoco.ie\",\"pmurphy@sdublincoco.ie\")","v":"pmurphy@sdublincoco.ie"}]
[]
[null,"South Dublin County Partnership",null,{"$f":"HYPERLINK(\"http://www.sdcpartnership.ie\",\"www.sdcpartnership.ie\")","v":"www.sdcpartnership.ie"},null,null,"FB/Twitter"]
[null,null,"01 4522533",null,"Ann Fitzpatrick (Tallaght)",{"$f":"HYPERLINK(\"mailto:ann.fitzpatrick@sdcpartnership.ie\",\"ann.fitzpatrick@sdcpartnership.ie\")","v":"ann.fitzpatrick@sdcpartnership.ie"}," "]
[null,null,"087 6756247",null,"Anthea Carry (Tallaght)",{"$f":"HYPERLINK(\"mailto:anthea.carry@sdcpartnership.ie\",\"anthea.carry@sdcpartnership.ie\")","v":"anthea.carry@sdcpartnership.ie"}," "]
[null,null,"087 9402684",null,"David Lynch (Clondalkin)",{"$f":"HYPERLINK(\"mailto:david.lynch@sdcpartnership.ie\",\"david.lynch@sdcpartnership.ie\")","v":"david.lynch@sdcpartnership.ie"}," "]
[null,null,"087 2958456",null,"Lucy Peprah (Clondalkin)",{"$f":"HYPERLINK(\"mailto:lucy.peprah@sdcpartnership.ie\",\"lucy.peprah@sdcpartnership.ie\")","v":"lucy.peprah@sdcpartnership.ie"}," "]
[null,null,"087 7920640",null,"Lyuba Moore",{"$f":"HYPERLINK(\"mailto:intercultural1@sdcpartnership.ie\",\"intercultural1@sdcpartnership.ie\")","v":"intercultural1@sdcpartnership.ie"}," "]
[]
[null,"Fingal Leader Partnership",null,{"$f":"HYPERLINK(\"http://www.fingalleaderpartnership.ie\",\"www.fingalleaderpartnership.ie\")","v":"www.fingalleaderpartnership.ie"},"Sandy Forsyth",{"$f":"HYPERLINK(\"mailto:aforsyth@fingalleaderpartnership.ie\",\"aforsyth@fingalleaderpartnership.ie\")","v":"aforsyth@fingalleaderpartnership.ie"},"FB/Twitter"]
[null,null,"01 8077680",null,"Jennifer Lawlor",{"$f":"HYPERLINK(\"mailto:jlawlor@fingalleaderpartnership.ie\",\"jlawlor@fingalleaderpartnership.ie\")","v":"jlawlor@fingalleaderpartnership.ie"}]
[null,null,"01 8020484 (Balbriggin) ",null,"Michael Craig",{"$f":"HYPERLINK(\"mailto:mcraig@fingalleaderpartnership.ie\",\"mcraig@fingalleaderpartnership.ie\")","v":"mcraig@fingalleaderpartnership.ie"}]
[]
[null,"Fingal County Council","01 8900500 ",{"$f":"HYPERLINK(\"http://www.fingalcoco.ie/community-and-leisure/community-development-and-activities/\",\"http://www.fingalcoco.ie/community-and-leisure/community-development-and-activities/\")","v":"http://www.fingalcoco.ie/community-and-leisure/community-development-and-activities/"}," ",{"$f":"HYPERLINK(\"mailto:info@fingal.ie\",\"info@fingal.ie\")","v":"info@fingal.ie"}]
[]
[null,"Northside Partnership",null,{"$f":"HYPERLINK(\"http://www.northsidepartnership.ie\",\"www.northsidepartnership.ie\")","v":"www.northsidepartnership.ie"}]
[null,null,"01 8485630",null,"Dr Matthias Borscheid",{"$f":"HYPERLINK(\"mailto:matthias@nspartnership.ie\",\"matthias@nspartnership.ie\")","v":"matthias@nspartnership.ie"},"FB/Twitter"]
[null,null,"087 2890251",null,"Rosin Liston",{"$f":"HYPERLINK(\"mailto:roisin.liston@nspartnership.ie\",\"roisin.liston@nspartnership.ie\")","v":"roisin.liston@nspartnership.ie"}]
[]
[]
[null,"Southsie Partnership DLR","01 2090610",{"$f":"HYPERLINK(\"http://www.southsidepartnership.ie\",\"www.southsidepartnership.ie\")","v":"www.southsidepartnership.ie"},"Sandra Campbell",{"$f":"HYPERLINK(\"mailto:sandra.campbell@sspship.ie\",\"sandra.campbell@sspship.ie\")","v":"sandra.campbell@sspship.ie"}]
[{"$nulls":4},"Lisa Sierger-Jamison",{"$f":"HYPERLINK(\"mailto:lisa.sierg@sspship.ie\",\"lisa.sierg@sspship.ie\")","v":"lisa.sierg@sspship.ie"}]
[{"$nulls":4},"Marian White",{"$f":"HYPERLINK(\"mailto:marian.white@sspship.ie\",\"marian.white@sspship.ie\")","v":"marian.white@sspship.ie"}]
[{"$nulls":4},"Daniela Naab",{"$f":"HYPERLINK(\"mailto:daniela.naab@sspship.ie\",\"daniela.naab@sspship.ie\")","v":"daniela.naab@sspship.ie"}]
[]
[null,"Dun Laoghaire/Rathdown Co.Co. (SICAP)","01 205 4700",{"$f":"HYPERLINK(\"http://www.dlrcoco.ie\",\"www.dlrcoco.ie\")","v":"www.dlrcoco.ie"},"Deirdre Baber",{"$f":"HYPERLINK(\"mailto:dbaber@dlrcoco.ie\",\"dbaber@dlrcoco.ie\")","v":"dbaber@dlrcoco.ie"}]
[{"$nulls":5},{"$f":"HYPERLINK(\"mailto:corp@dlrcoco.ie\",\"corp@dlrcoco.ie\")","v":"corp@dlrcoco.ie"}]
[]
[null,"Dublin North West Area Partnership",null,{"$f":"HYPERLINK(\"http://www.dnap.ie\",\"www.dnap.ie\")","v":"www.dnap.ie"},null,{"$f":"HYPERLINK(\"mailto:info@dnwap.ie\",\"info@dnwap.ie\")","v":"info@dnwap.ie"},"FB/Twitter"]
[null,null,"01 836 1666",null,"Triona O'Sullivan",{"$f":"HYPERLINK(\"mailto:triona.osullivan@dnwap.ie\",\"triona.osullivan@dnwap.ie\")","v":"triona.osullivan@dnwap.ie"}]
[null,null,"01 868 3806",null,"Mary Corridan ",{"$f":"HYPERLINK(\"mailto:mary.corridan@dnwap.ie\",\"mary.corridan@dnwap.ie\")","v":"mary.corridan@dnwap.ie"}]
[]
[null,"South West Inner City Network","01 453 6674","www.swicn.ie","Ivanna Chovgan",{"$f":"HYPERLINK(\"mailto:ivanna.chovgan@swicn.ie\",\"ivanna.chovgan@swicn.ie\")","v":"ivanna.chovgan@swicn.ie"}]
[]
[null,"Inner City Organisations Network","01 8366890",{"$f":"HYPERLINK(\"http://www.iconnetwork.ie/links/\",\"www.iconnetwork.ie/links/\")","v":"www.iconnetwork.ie/links/"},null,{"$f":"HYPERLINK(\"mailto:iconet@iol.ie\",\"iconet@iol.ie\")","v":"iconet@iol.ie"}]
[null," "]
[null,"Dublin Community Directory",null,{"$f":"HYPERLINK(\"http://www.dublinbynumbers.com/categories/voluntary-and-community\",\"www.dublinbynumbers.com/categories/voluntary-and-community#\")","v":"www.dublinbynumbers.com/categories/voluntary-and-community#"}," "]
[]
[]
[]
[null,"Dublin Public Participation Network",null,{"$f":"HYPERLINK(\"http://www.dublincity.ie/main-menu-services-community/dublin-city-public-participation-network-ppn\",\"www.dublincity.ie/main-menu-services-community/dublin-city-public-participation-network-ppn\")","v":"www.dublincity.ie/main-menu-services-community/dublin-city-public-participation-network-ppn"},"  "]
[]
[null,"Business in the Community","01 874 7232",{"$f":"HYPERLINK(\"http://www.bitc.ie\",\"www.bitc.ie\")","v":"www.bitc.ie"},"Pat Buckley",{"$f":"HYPERLINK(\"mailto:pbuckley@bitc.ie\",\"pbuckley@bitc.ie\")","v":"pbuckley@bitc.ie"},"FB/Twitter/L-In"]
[{"$nulls":4},"Shane Mulchrone  (Outreach)",{"$f":"HYPERLINK(\"mailto:smulchrone@bitc.ie\",\"smulchrone@bitc.ie\")","v":"smulchrone@bitc.ie"}]
[{"$nulls":4},"Sofia Forero Gomez",{"$f":"HYPERLINK(\"mailto:sforerogomez@bitc.ie\",\"sforerogomez@bitc.ie\")","v":"sforerogomez@bitc.ie"}]
[]
[null,"Dublin City (SICAP) ","01 222 2222",{"$f":"HYPERLINK(\"http://www.dublincitycoco.ie\",\"www.dublincitycoco.ie\")","v":"www.dublincitycoco.ie"},"Bernie Doherty",{"$f":"HYPERLINK(\"mailto:bernie.doherty@dublincity.ie\",\"bernie.doherty@dublincity.ie\")","v":"bernie.doherty@dublincity.ie"}]
[]
[null,"Dublin City Community Co Op","087 690 9184",{"$f":"HYPERLINK(\"http://www.dublincitycommunitycoop.ie/our_team\",\"www.dublincitycommunitycoop.ie/our_team\")","v":"www.dublincitycommunitycoop.ie/our_team"},"Noel Wardick",null,"FB/Twitter"]
[]
[null,"W.A.L.K. ","01 465 0388",{"$f":"HYPERLINK(\"http://www.walk.ie/what-we-do/community-living/\",\"www.walk.ie/what-we-do/community-living/\")","v":"www.walk.ie/what-we-do/community-living/"},"Fintan McConnell",{"$f":"HYPERLINK(\"mailto:info@walk.ie\",\"info@walk.ie\")","v":"info@walk.ie"},"FB/Twitter/L-in"]
[{"$nulls":4},"Ciaran Bulman "]
[null,"Clondalkin Women's Network","01 4670748/4970780",{"$f":"HYPERLINK(\"http://www.cwn.ie\",\"www.cwn.ie\")","v":"www.cwn.ie"},"Linda Greene ",{"$f":"HYPERLINK(\"mailto:info@cwn.ie\",\"info@cwn.ie\")","v":"info@cwn.ie"},"FB"]
[{"$nulls":4},"Anne Doyle "]
[]
[null,"Ronanstown Women's CDP","01 4570687",{"$f":"HYPERLINK(\"http://www.cwn.ie\",\"www.cwn.ie\")","v":"www.cwn.ie"},"Vivienne Glanville",{"$f":"HYPERLINK(\"mailto:rwcdp1@eircom.net\",\"rwcdp1@eircom.net\")","v":"rwcdp1@eircom.net"},"FB"]
[{"$nulls":4},"Pauline Flynn "]
[]
[null,"Rowlagh Women's Group",null,{"$f":"HYPERLINK(\"http://www.cwn.ie\",\"www.cwn.ie\")","v":"www.cwn.ie"},"Bernie Beatley",{"$f":"HYPERLINK(\"mailto:rowlaghwomensgroup@outlook.ie\",\"rowlaghwomensgroup@outlook.ie\")","v":"rowlaghwomensgroup@outlook.ie"}]
[{"$nulls":4},"Marie Daly"]
[]
[null,"Women Together Tallaght","01 462 7741",{"$f":"HYPERLINK(\"http://www.sdcppn.ie/directory/women-together-tallaght-network/\",\"http://www.sdcppn.ie/directory/women-together-tallaght-network/\")","v":"http://www.sdcppn.ie/directory/women-together-tallaght-network/"},"Marie O'Donoghue",{"$f":"HYPERLINK(\"mailto:tallaghtwomen@eircom.net\",\"tallaghtwomen@eircom.net\")","v":"tallaghtwomen@eircom.net"}]
[{"$nulls":4},"Annette Ennis "]
[]
[null,"Southside Women's Action Network","01 2825932",{"$f":"HYPERLINK(\"http://swannetwork.ie/\",\"http://swannetwork.ie/\")","v":"http://swannetwork.ie/"},"Pauline Daly",{"$f":"HYPERLINK(\"mailto:coordinatorswan@gmail.com\",\"coordinatorswan@gmail.com\")","v":"coordinatorswan@gmail.com"}]
[{"$nulls":4},"Sandra Walsh"]
[null,"Directory of Migrant Org & Support Groups "," ",{"$f":"HYPERLINK(\"http://www.newcommunities.ie/download/pdf/a_z_migrant_directory_2012_final.pdf\",\"http://www.newcommunities.ie/download/pdf/a_z_migrant_directory_2012_final.pdf\")","v":"http://www.newcommunities.ie/download/pdf/a_z_migrant_directory_2012_final.pdf"}," "," "]
[]
[null,"Migrant Rights Centre","01889 7570","http://www.mrci.ie/our-work/community-work/"," ",{"$f":"HYPERLINK(\"mailto:info@mrci.ie\",\"info@mrci.ie\")","v":"info@mrci.ie"},"FB/Twitter/"]
[]
[null,"ENAR (European Network Against Racism)","01 8897110","enarireland.org/membership/",null,{"$f":"HYPERLINK(\"mailto:info@enarireland.org\",\"info@enarireland.org\")","v":"info@enarireland.org"},"FB/Twitter "]
[]
[null,"Irish Refugee Council","01 764 5854","http://www.irishrefugeecouncil.ie/about/contact-us","Hassina Kiboua",{"$f":"HYPERLINK(\"mailto:info@irishrefugeecouncil.ie\",\"info@irishrefugeecouncil.ie\")","v":"info@irishrefugeecouncil.ie"},"FB/Twitter"]
[{"$nulls":4},"Rory O'Neill "," roryon@irishrefugeecouncil.ie"]
[null,"ERSI / Integration /Refugee Support Diretory "," ","http://www.integration.ie/website/omi/omiwebv6.nsf/page/AXBN-7PTGTT123844-en/$File/ESRI%20Handbook%20Chapter%206.pdf"," "]
[]
[null,"Immigrant Council of Ireland","01 6740200",{"$f":"HYPERLINK(\"http://www.immigrantcouncil.ie\",\"www.immigrantcouncil.ie\")","v":"www.immigrantcouncil.ie"},"Teresa Buczkowska",{"$f":"HYPERLINK(\"mailto:admin@immigrantcouncil.ie\",\"admin@immigrantcouncil.ie\")","v":"admin@immigrantcouncil.ie"}]
[]
[null,"Crosscare Migrant Projet","01 873 2844",{"$f":"HYPERLINK(\"http://www.migrantprjoect.ie\",\"www.migrantprjoect.ie\")","v":"www.migrantprjoect.ie"},"Richard King",{"$f":"HYPERLINK(\"mailto:migrantproject@crosscare.ie\",\"migrantproject@crosscare.ie\")","v":"migrantproject@crosscare.ie"}]
[{"$nulls":4},"Lauren Hennessy "]
[null,"New Communities Partnership","01 8727 842",{"$f":"HYPERLINK(\"http://www.newcommunities.ie\",\"www.newcommunities.ie\")","v":"www.newcommunities.ie"},"Rares Mihai Nicula ",null,"FB/Twitter/"]
[{"$nulls":4},"Sevak Khachatryan"]
[]
[null,"Dublin Directory of New Communities ",null,{"$f":"HYPERLINK(\"http://www.newcommunities.ie/download/pdf/a_z_migrant_directory_2012_final.pdf\",\"www.newcommunities.ie/download/pdf/a_z_migrant_directory_2012_final.pdf\")","v":"www.newcommunities.ie/download/pdf/a_z_migrant_directory_2012_final.pdf"}," "]
[]
[null,"CPLN Partnership","01 4508788/ 450 8748",{"$f":"HYPERLINK(\"http://www.cpln.ie\",\"www.cpln.ie\")","v":"www.cpln.ie"},"Cecil Johnston",{"$f":"HYPERLINK(\"mailto:cjohnston@cpln.ie\",\"cjohnston@cpln.ie\")","v":"cjohnston@cpln.ie"}]
[{"$nulls":4},"Ann Troy",{"$f":"HYPERLINK(\"mailto:atroy@cpln.ie\",\"atroy@cpln.ie\")","v":"atroy@cpln.ie"}]
[null,"Dublin Employment Pact","01 878 8900",{"$f":"HYPERLINK(\"http://www.dublinpact.ie\",\"www.dublinpact.ie\")","v":"www.dublinpact.ie"},"Jean Somers",{"$f":"HYPERLINK(\"mailto:info@dublinpact.ie\",\"info@dublinpact.ie\")","v":"info@dublinpact.ie"}]
[]
[]
["GALWAY","FORUM Conemara","095 41116",{"$f":"HYPERLINK(\"http://www.forumconnemara.ie\",\"www.forumconnemara.ie\")","v":"www.forumconnemara.ie"},"Cathy Keane ",{"$f":"HYPERLINK(\"mailto:c.keane@forumconnemara.ie\",\"c.keane@forumconnemara.ie\")","v":"c.keane@forumconnemara.ie"}]
[{"$nulls":4},"Kathleen deCourcey",{"$f":"HYPERLINK(\"mailto:k.decourcey@forumconnemara.ie\",\"k.decourcey@forumconnemara.ie\")","v":"k.decourcey@forumconnemara.ie"}]
[{"$nulls":4},"Brian Conneely",{"$f":"HYPERLINK(\"mailto:b.conneely@forumconnemara.ie\",\"b.conneely@forumconnemara.ie\")","v":"b.conneely@forumconnemara.ie"}]
[null,null,"095 41064",null,"Geraldine Kelly",{"$f":"HYPERLINK(\"mailto:g.kelly@forumconnemara.ie\",\"g.kelly@forumconnemara.ie\")","v":"g.kelly@forumconnemara.ie"}]
[{"$nulls":4},"Gearoid deFaoite",{"$f":"HYPERLINK(\"mailto:g.defaoite@forumconnemara.ie\",\"g.defaoite@forumconnemara.ie\")","v":"g.defaoite@forumconnemara.ie"}]
[]
[null,"Galway City Partnership","091 773466",{"$f":"HYPERLINK(\"http://www.gcp.ie\",\"www.gcp.ie\")","v":"www.gcp.ie"},"Ekaterina Okonkwo",{"$f":"HYPERLINK(\"mailto:Katya@galwaymigrantservices.ie\",\"Katya@galwaymigrantservices.ie\")","v":"Katya@galwaymigrantservices.ie"},"FB/L-in/Twitter"]
[null,null,"086 1967974",null,"Imelda Gormally",{"$f":"HYPERLINK(\"mailto:imelda@gcp.ie\",\"imelda@gcp.ie\")","v":"imelda@gcp.ie"}]
[null,null,"087 9303468",null,"sabrina Commins",{"$f":"HYPERLINK(\"mailto:sabrina@gcp.ie\",\"sabrina@gcp.ie\")","v":"sabrina@gcp.ie"}]
[null,null,"086 4053602",null,"Suzanne McKane",{"$f":"HYPERLINK(\"mailto:suzanne@gcp.ie\",\"suzanne@gcp.ie\")","v":"suzanne@gcp.ie"}]
[]
[null,"Galway Peoples Resource Centre","091 565311",{"$f":"HYPERLINK(\"http://gprc.ie/\",\"http://gprc.ie/\")","v":"http://gprc.ie/"},"Pat Corless",{"$f":"HYPERLINK(\"mailto:pat@gcples.ie\",\"pat@gcples.ie\")","v":"pat@gcples.ie"}]
[]
[null,"Ballybane Community Resource Centre","091 768304",null,"Robert KcKenny",{"$f":"HYPERLINK(\"mailto:robertmckenny@gcples.ie\",\"robertmckenny@gcples.ie\")","v":"robertmckenny@gcples.ie"},"FB"]
[null,null,"091 768305",null,"Imelda Gormally",{"$f":"HYPERLINK(\"mailto:cdp4@eircom.net\",\"cdp4@eircom.net\")","v":"cdp4@eircom.net"}]
[]
[null,"Westside Community Resource Centre","091 581955",{"$f":"HYPERLINK(\"http://www.westsideresourcecentre.ie/\",\"http://www.westsideresourcecentre.ie/\")","v":"http://www.westsideresourcecentre.ie/"},"Mary Spelman",{"$f":"HYPERLINK(\"mailto:maryspelman@gcples.ie\",\"maryspelman@gcples.ie\")","v":"maryspelman@gcples.ie"}]
[null,"Westside Comm. Dev. Project ","091 528325",{"$f":"HYPERLINK(\"http://westsidecdp.blogspot.ie/\",\"http://westsidecdp.blogspot.ie/\")","v":"http://westsidecdp.blogspot.ie/"},"Vernice Murray",{"$f":"HYPERLINK(\"mailto:wcdp@eircom.net\",\"wcdp@eircom.net\")","v":"wcdp@eircom.net"}]
[]
[null,"Galway Rural Development","091 844335",{"$f":"HYPERLINK(\"http://www.grd.ie\",\"www.grd.ie\")","v":"www.grd.ie"},"Elaine Quinn",{"$f":"HYPERLINK(\"mailto:grd@grd.ie\",\"grd@grd.ie\")","v":"grd@grd.ie"}]
[{"$nulls":4},"Donna Gleeson","grd@grd.ie"]
[{"$nulls":4},"Freeda Garman","grd@grd.ie"]
[null," (Rural Development Programme)",null,null,"Miriam Stewart","grd@grd.ie"]
[{"$nulls":4},"Clare Conroy","grd@grd.ie"]
[null," (Rural Social Scheme)","091 875732",null,"Sean Broderick","grd@grd.ie"]
[{"$nulls":4},"Niamh Divilly","grd@grd.ie"]
[null,"Galway City Community Network",null,{"$f":"HYPERLINK(\"http://galwaycitycommunitynetwork.ie/members-page/directory-of-members/\",\"http://galwaycitycommunitynetwork.ie/members-page/directory-of-members/\")","v":"http://galwaycitycommunitynetwork.ie/members-page/directory-of-members/"}," "]
[null,"(Public Participation Networks)"]
[]
[null,"Galway City (SICAP)","091 536 400",{"$f":"HYPERLINK(\"http://www.galwaycity.ie\",\"www.galwaycity.ie\")","v":"www.galwaycity.ie"},"Peter Salmon",{"$f":"HYPERLINK(\"mailto:peter.salmon@galwaycity.ie\",\"peter.salmon@galwaycity.ie\")","v":"peter.salmon@galwaycity.ie"}]
[]
[null,"Galway County (SICAP)","091 509 000",{"$f":"HYPERLINK(\"http://www.galwaycoco.ie\",\"www.galwaycoco.ie\")","v":"www.galwaycoco.ie"},"Catherine McConnell",{"$f":"HYPERLINK(\"mailto:cmcconnell@galwaycoco.ie\",\"cmcconnell@galwaycoco.ie\")","v":"cmcconnell@galwaycoco.ie"}]
[null," "," ",{"$f":"HYPERLINK(\"http://www.galwaycoco.ie\",\" \")","v":" "},null,{"$f":"HYPERLINK(\"mailto:customerservices@galwaycoco.ie\",\"customerservices@galwaycoco.ie\")","v":"customerservices@galwaycoco.ie"}]
[{"$nulls":5},"gaeilge@cocogaillimhe.ie"]
[]
[null,"Community Directory Galway City",null,{"$f":"HYPERLINK(\"http://community.galway.tel/\",\"http://community.galway.tel/\")","v":"http://community.galway.tel/"}]
[]
[null,"Community Work Ireland","091 528325",{"$f":"HYPERLINK(\"http://www.communityworkireland.ie\",\"www.communityworkireland.ie\")","v":"www.communityworkireland.ie"},"Rachel Doyle",{"$f":"HYPERLINK(\"mailto:info@communityworkireland.ie\",\"info@communityworkireland.ie\")","v":"info@communityworkireland.ie"},"FB/Twitter"]
[{"$nulls":4},"Ann Irwin"]
[null,"Volunteer Galway","091 581 727",{"$f":"HYPERLINK(\"http://www.volunteergalway.ie\",\"www.volunteergalway.ie\")","v":"www.volunteergalway.ie"},null,{"$f":"HYPERLINK(\"mailto:info@volunteergalway.ie\",\"info@volunteergalway.ie\")","v":"info@volunteergalway.ie"}]
[]
[null,"Inishboffin Dev Company","095 45861",{"$f":"HYPERLINK(\"http://www.inishbofin.com/community/\",\"http://www.inishbofin.com/community/\")","v":"http://www.inishbofin.com/community/"},"Simon Murray",{"$f":"HYPERLINK(\"mailto:bofindev@eircom.net\",\"bofindev@eircom.net\")","v":"bofindev@eircom.net"}]
[]
[null,"Inisturk Dev Office ","098 457778","http://www.inishturkisland.com/","Mary Catherine Heanue",{"$f":"HYPERLINK(\"mailto:mheanue@online.ie\",\"mheanue@online.ie\")","v":"mheanue@online.ie"}]
[]
[]
["KERRY ","North & East Kerry Development","066 7180190",{"$f":"HYPERLINK(\"http://www.nekd.ie\",\"www.nekd.ie\")","v":"www.nekd.ie"},"Robert Carey",{"$f":"HYPERLINK(\"mailto:robertcarey@newkd.ie\",\"robertcarey@newkd.ie\")","v":"robertcarey@newkd.ie"}]
[null,null,"068 23429",null,"David Fitzgibbon",{"$f":"HYPERLINK(\"mailto:davidfitzgibbon@newkd.ie\",\"davidfitzgibbon@newkd.ie\")","v":"davidfitzgibbon@newkd.ie"}]
[null,null,"066 7180190",null,"Seamus O'Hara (Tralee)",{"$f":"HYPERLINK(\"mailto:seamusohara@newkd.ie\",\"seamusohara@newkd.ie\")","v":"seamusohara@newkd.ie"}]
[null,null,"068 23429",null,"Anita Bodenham (Listowel)",{"$f":"HYPERLINK(\"mailto:ainestack@newkd.ie\",\"ainestack@newkd.ie\")","v":"ainestack@newkd.ie"}]
[null,null,"066 7142576",null,"Kay Daly (Castleisland)",{"$f":"HYPERLINK(\"mailto:kaydaly@newkd.ie\",\"kaydaly@newkd.ie\")","v":"kaydaly@newkd.ie"}]
[null,null,"068 23429",null,"Dee Keogh (Listowel",{"$f":"HYPERLINK(\"mailto:deekeogh@nekd.ie\",\"deekeogh@nekd.ie\")","v":"deekeogh@nekd.ie"}]
[null,null,"066 7180190",null,"Deirdre Kearne (Tralee)",{"$f":"HYPERLINK(\"mailto:deirdrekearin@nekd.ie\",\"deirdrekearin@nekd.ie\")","v":"deirdrekearin@nekd.ie"}]
[]
[null,"South Kerry Development Partnership Ltd","066 9472724",{"$f":"HYPERLINK(\"http://www.southkerry.ie\",\"www.southkerry.ie\")","v":"www.southkerry.ie"},"John McCrohan",{"$f":"HYPERLINK(\"mailto:johnmccrohan@skdp.net\",\"johnmccrohan@skdp.net\")","v":"johnmccrohan@skdp.net"}]
[{"$nulls":4},"Paul O'Raw",{"$f":"HYPERLINK(\"mailto:poraw@skdp.net\",\"poraw@skdp.net\")","v":"poraw@skdp.net"}]
[{"$nulls":4},"Joseph McCrohan",{"$f":"HYPERLINK(\"mailto:jmccrohan@skdp.net\",\"jmccrohan@skdp.net\")","v":"jmccrohan@skdp.net"}]
[]
[null,"Kerry Public Participation Network",null,{"$f":"HYPERLINK(\"http://kerryppn.ie/what-is-the-kerry-public-participation-network/\",\"http://kerryppn.ie/what-is-the-kerry-public-participation-network/\")","v":"http://kerryppn.ie/what-is-the-kerry-public-participation-network/"}," "]
[]
[null,"Kerry County Council (SICAP)","066 718 3500",{"$f":"HYPERLINK(\"http://www.kerrycoco.ie\",\"www.kerrycoco.ie\")","v":"www.kerrycoco.ie"},"Niamh O'Sullivan",{"$f":"HYPERLINK(\"mailto:niamh.osullivan@kerrycoco.ie\",\"niamh.osullivan@kerrycoco.ie\")","v":"niamh.osullivan@kerrycoco.ie"}]
[{"$nulls":5},{"$f":"HYPERLINK(\"mailto:info@kerrycoco.ie\",\"info@kerrycoco.ie\")","v":"info@kerrycoco.ie"}]
[]
[null,"Community Directory Tralee",null,"http://services.community.tralee.tel/"]
[null,"Community Directory Listowel",null,{"$f":"HYPERLINK(\"http://community.listowel.kerry.tel/\",\"http://community.listowel.kerry.tel/\")","v":"http://community.listowel.kerry.tel/"}]
[]
[null,"Southwest Kerry Women's Association","066 9473397","http://www.skwa.net/","Mairead Lynch",{"$f":"HYPERLINK(\"mailto:mairead@skwa.net\",\"mairead@skwa.net\")","v":"mairead@skwa.net"},"FB "]
[]
[null,"Tralee  International Resource Centre","066 7127918/087 9822983",{"$f":"HYPERLINK(\"http://www.tirc.ie\",\"www.tirc.ie\")","v":"www.tirc.ie"},"Mary Carroll",{"$f":"HYPERLINK(\"mailto:info@tirc.ie\",\"info@tirc.ie\")","v":"info@tirc.ie"}]
[]
[{"$nulls":4},"Cathy McKeefry",{"$f":"HYPERLINK(\"mailto:cathy@skwa.net\",\"cathy@skwa.net\")","v":"cathy@skwa.net"}]
[null,"Tralee Community Dev Proj","0667 120877","http://www.traleecdp.ie/community-support-groups.html","June Moynihan ",{"$f":"HYPERLINK(\"mailto:traleecdp@eircom.net\",\"traleecdp@eircom.net\")","v":"traleecdp@eircom.net"},"FB"]
[]
["KILDARE","Co. Kildare Leader Partnership","045 895450",{"$f":"HYPERLINK(\"http://www.countykildarelp.ie\",\"www.countykildarelp.ie\")","v":"www.countykildarelp.ie"}]
[null,null,"045 895450",null,"Adrian Brown ",{"$f":"HYPERLINK(\"mailto:tusadmin@cklp.ie\",\"tusadmin@cklp.ie\")","v":"tusadmin@cklp.ie"},"FB/Twitter"]
[null,null,"045 430922",null,"Mary Hennessy",{"$f":"HYPERLINK(\"mailto:maryh@countykildarelp.ie\",\"maryh@countykildarelp.ie\")","v":"maryh@countykildarelp.ie"}]
[null,null,"045 895450",null,"Anne Daly",{"$f":"HYPERLINK(\"mailto:anne@countykildarelp.ie\",\"anne@countykildarelp.ie\")","v":"anne@countykildarelp.ie"}]
[null,null,"087 1411669",null,"Denise Croke",{"$f":"HYPERLINK(\"mailto:oldervoiceskildare@gmail.com\",\"oldervoiceskildare@gmail.com\")","v":"oldervoiceskildare@gmail.com"}]
[]
[null,"Kildare Public Participation Network","045 980700",{"$f":"HYPERLINK(\"http://www.kildareppn.ie/\",\"http://www.kildareppn.ie/\")","v":"http://www.kildareppn.ie/"},null,{"$f":"HYPERLINK(\"mailto:kildareppn@gmail.com\",\"kildareppn@gmail.com\")","v":"kildareppn@gmail.com"}]
[]
[null,"Kildare County Council (SICAP)","045 980 200",{"$f":"HYPERLINK(\"http://kildare.ie/countycouncil/index.html\",\"http://kildare.ie/countycouncil/index.html\")","v":"http://kildare.ie/countycouncil/index.html"},"Peter Minnock",{"$f":"HYPERLINK(\"mailto:pminnock@kildarecoco.ie\",\"pminnock@kildarecoco.ie\")","v":"pminnock@kildarecoco.ie"}]
[{"$nulls":5},{"$f":"HYPERLINK(\"mailto:customercare@kildarecoco.ie\",\"customercare@kildarecoco.ie\")","v":"customercare@kildarecoco.ie"}]
[]
["KILKENNY","Kilkenny Leader Partnership ","056 7752111",{"$f":"HYPERLINK(\"http://www.ckip.ie\",\"www.ckip.ie\")","v":"www.ckip.ie"},"Declan Rice ",{"$f":"HYPERLINK(\"mailto:declan.rice@cklp.ie\",\"declan.rice@cklp.ie\")","v":"declan.rice@cklp.ie"},"FB/Twitter"]
[]
[null,"Kilkenny County Council (SICAP)","056 779 4000","http://www.kilkennycoco.ie/eng/Your_Council/LCDC/","Maria Melia",{"$f":"HYPERLINK(\"mailto:maria.melia@kilkennylcdc.ie\",\"maria.melia@kilkennylcdc.ie\")","v":"maria.melia@kilkennylcdc.ie"}]
[{"$nulls":5},{"$f":"HYPERLINK(\"mailto:info@kilkennycoco.ie\",\"info@kilkennycoco.ie\")","v":"info@kilkennycoco.ie"}]
[null,"Kilkenny Public Participation Network",null,"http://www.kilkennycoco.ie/eng/Services/Community_Culture/Public-Participation-Networks/"," "]
[]
["LAOIS","Laois Partnership Company","057 8661900",{"$f":"HYPERLINK(\"http://www.laoispartnership.ie\",\"www.laoispartnership.ie\")","v":"www.laoispartnership.ie"},"Storm Powell",{"$f":"HYPERLINK(\"mailto:stormpowel@laoispartnership.ie\",\"stormpowel@laoispartnership.ie\")","v":"stormpowel@laoispartnership.ie"}," "]
[]
[null,"Laois County Council (SICAP)","057 866 4000",{"$f":"HYPERLINK(\"http://www.laoiscoco.ie\",\"www.laoiscoco.ie\")","v":"www.laoiscoco.ie"},"Ian McCormack",{"$f":"HYPERLINK(\"mailto:imccormack@laoiscoco.ie\",\"imccormack@laoiscoco.ie\")","v":"imccormack@laoiscoco.ie"}]
[]
[]
[null,"Laois Public Participation Network","057 8664023",{"$f":"HYPERLINK(\"http://www.laois.ie/CommunityandLiving/CommunityandEnterprise/PublicParticipationNetwork/\",\"http://www.laois.ie/CommunityandLiving/CommunityandEnterprise/PublicParticipationNetwork/\")","v":"http://www.laois.ie/CommunityandLiving/CommunityandEnterprise/PublicParticipationNetwork/"}," ",null,"FB"]
[{"$nulls":4},"Pamela Tynan",{"$f":"HYPERLINK(\"mailto:ppn@laoiscoco.ie\",\"ppn@laoiscoco.ie\")","v":"ppn@laoiscoco.ie"}]
[]
["LEITRIM","Leitrim Integrated Dev Co. ","071 9641770",{"$f":"HYPERLINK(\"http://www.ldco.ie\",\"www.ldco.ie\")","v":"www.ldco.ie"}]
[null,null,"071 963171",null,"Bernie Donoghue",{"$f":"HYPERLINK(\"mailto:bernie@ldco.ie\",\"bernie@ldco.ie\")","v":"bernie@ldco.ie"}]
[null,null,"071 9856016",null,"Teresa Butler",{"$f":"HYPERLINK(\"mailto:teresa@ldco.ie\",\"teresa@ldco.ie\")","v":"teresa@ldco.ie"}]
[null,null,"071 9648966",null,"Anna McTiernan",{"$f":"HYPERLINK(\"mailto:annamctiernan@ldco.ie\",\"annamctiernan@ldco.ie\")","v":"annamctiernan@ldco.ie"}]
[]
[null,"Leitrim Volunter Organisation","071 9641770","http://www.volunteerinleitrim.ie/organisations-in-leitrim.html"," "]
[]
[null,"Leitrim Public Participation Networks",null,{"$f":"HYPERLINK(\"https://leitrimppn.wordpress.com/local-authority-bodies-with-ppn-representation\",\"https://leitrimppn.wordpress.com/local-authority-bodies-with-ppn-representation\")","v":"https://leitrimppn.wordpress.com/local-authority-bodies-with-ppn-representation"}," "]
[]
[null,"Leitrim County Council (SICAP)"," 071 9620005",{"$f":"HYPERLINK(\"http://www.leitrimcoco.ie/eng/Contact_Us/Customer_Services/\",\"http://www.leitrimcoco.ie/eng/Contact_Us/Customer_Services/\")","v":"http://www.leitrimcoco.ie/eng/Contact_Us/Customer_Services/"},"Joseph Gilhooly",{"$f":"HYPERLINK(\"mailto:igilhool@leitrimcoco.ie\",\"igilhool@leitrimcoco.ie\")","v":"igilhool@leitrimcoco.ie"}]
[null,null,null,{"$f":"HYPERLINK(\"http://www.leitrimbusiness.ie/Live-Work/Living-in-Leitrim/Community-Development\",\"http://www.leitrimbusiness.ie/Live-Work/Living-in-Leitrim/Community-Development\")","v":"http://www.leitrimbusiness.ie/Live-Work/Living-in-Leitrim/Community-Development"}," ",null,"FB/Twitter "]
[]
[null,"Leitrim.ie",null,{"$f":"HYPERLINK(\"http://www.leitrim.ie\",\"www.leitrim.ie\")","v":"www.leitrim.ie"},null,{"$f":"HYPERLINK(\"mailto:customerservice@leitrim.ie\",\"customerservice@leitrim.ie\")","v":"customerservice@leitrim.ie"}]
[]
[null,"Mayo/Sligo/Leitrim Service Directory",null,"http://mayosligoleitrim.etb.ie/latest-news/launch-sligo-leitrim-services-directory-website/"," ",null,"FB/Twitter"]
[]
[null,"North Leitrim Women's Network","071 985 6220","http://www.northleitrimwomenscentre.ie/","Assumpta Kelly",{"$f":"HYPERLINK(\"mailto:info@northleitrimwomenscentre.ie\",\"info@northleitrimwomenscentre.ie\")","v":"info@northleitrimwomenscentre.ie"},"FB"]
[{"$nulls":4},"Jane Golden ",{"$f":"HYPERLINK(\"mailto:nlwrg@eircom.net\",\"nlwrg@eircom.net\")","v":"nlwrg@eircom.net"}]
[]
["LIMERICK","Ballyhoura Development","063 91300",{"$f":"HYPERLINK(\"http://www.ballyhouradevelopment.com\",\"www.ballyhouradevelopment.com\")","v":"www.ballyhouradevelopment.com"},null,{"$f":"HYPERLINK(\"mailto:Info@ballyhoura.org\",\"Info@ballyhoura.org\")","v":"Info@ballyhoura.org"},"FB/Twitter"]
[{"$nulls":4},"Sadie Allen (Galtee District)"]
[{"$nulls":4},"David O'Grady (Baltee District)"]
[{"$nulls":4},"Eileen O'Keeffe (Golden Vale Dist)"]
[{"$nulls":4},"John Hassett (Golden Vale District"]
[{"$nulls":4},"Barry Wilson (RSS/Tus Co-Ord)"]
[{"$nulls":4},"Eugene O'Donnell (RSS Super)"]
[{"$nulls":4},"Rhiannon Luabach (RSS Super)"]
[]
[null,"West Limerick Resources ","069 62222",{"$f":"HYPERLINK(\"http://www.wlr.ie\",\"www.wlr.ie\")","v":"www.wlr.ie"},null,null,"FB"]
[null,null,"069 66293",null,"Declan Conlon Ahern",{"$f":"HYPERLINK(\"mailto:dconlon@wlr.ie\",\"dconlon@wlr.ie\")","v":"dconlon@wlr.ie"}]
[null,null,"069 61540",null,"Tom Wilmoth",{"$f":"HYPERLINK(\"mailto:twilmoth@wlr.ie\",\"twilmoth@wlr.ie\")","v":"twilmoth@wlr.ie"}]
[null,null,"069 61540",null,"Michelle McCarthy",{"$f":"HYPERLINK(\"mailto:mmcarthy3@wlr.ie\",\"mmcarthy3@wlr.ie\")","v":"mmcarthy3@wlr.ie"}]
[null,null,"069 79114",null,"Suzanne Rowley",{"$f":"HYPERLINK(\"mailto:srowley@wlr.ie\",\"srowley@wlr.ie\")","v":"srowley@wlr.ie"}]
[]
[null,"Paul Partnership ","061 419388",{"$f":"HYPERLINK(\"http://www.paulpartnership.ie\",\"www.paulpartnership.ie\")","v":"www.paulpartnership.ie"},null,null,"FB/Twitter"]
[null,"SICAP - Paul Partnership",null,null,"John Buttery",{"$f":"HYPERLINK(\"mailto:jbuttery@paulpartnership.ie\",\"jbuttery@paulpartnership.ie\")","v":"jbuttery@paulpartnership.ie"}]
[{"$nulls":4},"Mary Blackmore",{"$f":"HYPERLINK(\"mailto:mblackmore@paulpartnership.ie\",\"mblackmore@paulpartnership.ie\")","v":"mblackmore@paulpartnership.ie"}]
[{"$nulls":4},"Jane Hennelly",{"$f":"HYPERLINK(\"mailto:sjhennelly@paulpartnership.ie\",\"sjhennelly@paulpartnership.ie\")","v":"sjhennelly@paulpartnership.ie"}]
[{"$nulls":4},"Anne Marie Gleeson",{"$f":"HYPERLINK(\"mailto:amgleeson@paulpartnership.ie\",\"amgleeson@paulpartnership.ie\")","v":"amgleeson@paulpartnership.ie"}]
[]
[null,"Limerick County Council (SICAP)","061 407 100",{"$f":"HYPERLINK(\"http://www.limeric.ie\",\"www.limeric.ie\")","v":"www.limeric.ie"},"Seamus O'Connor",{"$f":"HYPERLINK(\"mailto:seamus.oconnor@limerick.ie\",\"seamus.oconnor@limerick.ie\")","v":"seamus.oconnor@limerick.ie"}]
[]
[null,"Limerick Public Participation Network","085 2103344",{"$f":"HYPERLINK(\"http://limerick.ppn.ie/linkage-groups/\",\"http://limerick.ppn.ie/linkage-groups/\")","v":"http://limerick.ppn.ie/linkage-groups/"}," "]
[]
[null,"Moyross CEC, Community Ent","061 326057",{"$f":"HYPERLINK(\"http://www.moyross.ie/index.html\",\"http://www.moyross.ie/index.html\")","v":"http://www.moyross.ie/index.html"},"Catherine O'Shaughnessy",{"$f":"HYPERLINK(\"mailto:catherine@moyross.ie\",\"catherine@moyross.ie\")","v":"catherine@moyross.ie"}]
[{"$nulls":4},"Noelle Howard",{"$f":"HYPERLINK(\"mailto:noelle@moyross.ie\",\"noelle@moyross.ie\")","v":"noelle@moyross.ie"}]
[]
[null,"St. Mary's Aid, Widows Alms (SICAP)","061 318106",null,"Mary Quane ",{"$f":"HYPERLINK(\"mailto:Mary.quane@stmarysaid.ie\",\"Mary.quane@stmarysaid.ie\")","v":"Mary.quane@stmarysaid.ie"}]
[]
[null,"Our Lady of Lourdes CSG (SICAP)","061 228596",null,"Gillian Jonker",{"$f":"HYPERLINK(\"mailto:adult.ed@ololcsg.ie\",\"adult.ed@ololcsg.ie\")","v":"adult.ed@ololcsg.ie"}]
[{"$nulls":4},"Denise Hannan",{"$f":"HYPERLINK(\"mailto:denise.hannan@ololcsg.ie\",\"denise.hannan@ololcsg.ie\")","v":"denise.hannan@ololcsg.ie"}]
[]
[null,"Tiat House, Roxboro Road (SICAP)","061 415340",null,"Ann McNamara",{"$f":"HYPERLINK(\"mailto:amcnamara@taithouse.ie\",\"amcnamara@taithouse.ie\")","v":"amcnamara@taithouse.ie"}]
[]
[null,"Limerick City Community Dev. Programme","061 328690/ 087 2338411",null,"Juan  Carlos Azzopardi",{"$f":"HYPERLINK(\"mailto:juancarlos@limerickcitycdp.ie\",\"juancarlos@limerickcitycdp.ie\")","v":"juancarlos@limerickcitycdp.ie"},"FB"]
[null,null,"061 328690 / 087 9475362",null,"Majella O'Connor",{"$f":"HYPERLINK(\"mailto:majella@limerickcdp.ie\",\"majella@limerickcdp.ie\")","v":"majella@limerickcdp.ie"}]
[]
[null,"Garryowen Community Development","061 312555",{"$f":"HYPERLINK(\"https://garryowencdp.com/\",\"https://garryowencdp.com/\")","v":"https://garryowencdp.com/"},"Maghnus Collins",{"$f":"HYPERLINK(\"mailto:maghnum@garryowencdp.com\",\"maghnum@garryowencdp.com\")","v":"maghnum@garryowencdp.com"}," "]
[]
[null,"Limerick Public Participation Network","085 2103344",{"$f":"HYPERLINK(\"http://limerick.ppn.ie/linkage-groups/\",\"http://limerick.ppn.ie/linkage-groups/\")","v":"http://limerick.ppn.ie/linkage-groups/"}," "]
[]
[null,"Doras Luimni","061 310 328",{"$f":"HYPERLINK(\"http://dorasluimni.org/\",\"http://dorasluimni.org/\")","v":"http://dorasluimni.org/"},"Aideen Rooche ",{"$f":"HYPERLINK(\"mailto:info@dorasluimni.org\",\"info@dorasluimni.org\")","v":"info@dorasluimni.org"},"FB/Twitter/Y Tube"]
[{"$nulls":4},"Sister Ella Noonan "]
[{"$nulls":4},"Raymond Muwaniri"]
[{"$nulls":4},"Tessa O'Neill"]
[]
[null,"Limerick Women's Network","061 408711/ 087 3283746",null,"Liz Price",{"$f":"HYPERLINK(\"mailto:developmentworklink@gmail.com\",\"developmentworklink@gmail.com\")","v":"developmentworklink@gmail.com"},"FB"]
[{"$nulls":4},"Edel Geraghty"]
[]
["LONGFORD","Longford Community Resources ","043 3345555",{"$f":"HYPERLINK(\"http://www.lcrl.ie\",\"www.lcrl.ie\")","v":"www.lcrl.ie"},"Valerie McFarlane ",{"$f":"HYPERLINK(\"mailto:enquiries@lcrl.ie\",\"enquiries@lcrl.ie\")","v":"enquiries@lcrl.ie"}]
[null,null,null,"http://lcrl.ie/uploads/Documents/GuidetoKeyServices.pdf","Mary Mulvey"]
[{"$nulls":4},"Felicia Loughrey"]
[{"$nulls":4},"Peter Masterson "]
[{"$nulls":4},"Con Halton"]
[]
[null,"Longford Public Participation Network","087 262 5583",{"$f":"HYPERLINK(\"http://www.longfordcoco.ie\",\"www.longfordcoco.ie\")","v":"www.longfordcoco.ie"},"Siobhan Cronogue",{"$f":"HYPERLINK(\"mailto:ppn@longfordcoco.ie\",\"ppn@longfordcoco.ie \")","v":"ppn@longfordcoco.ie "},"FB"]
[]
[null,"Longford County Council (SICAP)","043 334 3300",{"$f":"HYPERLINK(\"http://www.longfordcoco.ie\",\"www.longfordcoco.ie\")","v":"www.longfordcoco.ie"},"Ciaran Murphy",{"$f":"HYPERLINK(\"mailto:cmurphy@longfordcoco.ie\",\"cmurphy@longfordcoco.ie\")","v":"cmurphy@longfordcoco.ie"}]
[]
[null,"Longford Community Directory",null,"http://community.longford.tel/"]
[]
[null,"Longford Citizen Info: Local Development",null,"http://www.longfordcic.ie/organisations.php?action=1&cat_id=9"," "]
[]
["LOUTH","Louth Leader Partnership","042 9330288",{"$f":"HYPERLINK(\"http://www.louthleaderpartnership.ie\",\"www.louthleaderpartnership.ie\")","v":"www.louthleaderpartnership.ie"},"Mary Kelly","mary.kelly@louthleaderpartnership.ie"]
[null,"Drogheda","042 9330288"]
[null,"Ardee","041 6857375",null,"Mary O'Neill","mary.oneill@louthleaderpartnership.ie"]
[null,"Dundalk","042 9330288"]
[null,null,"041 9843333",null,"Hugh Doogan","hugh@genesislouth.ie"]
[]
[null,"Louth Public Participation Networks",null,"http://louthppn.ie/representatives/"," "]
[]
[null,"Louth County Community Svcs ",null,"http://louth-county.infoisinfo-ie.com/search/community-service"," "]
[]
[null,"Louth County Council (SICAP)","042 933 5457",{"$f":"HYPERLINK(\"http://www.louthcoco.ie\",\"www.louthcoco.ie\")","v":"www.louthcoco.ie"},"Joe McGuinness",{"$f":"HYPERLINK(\"mailto:joe.mcguinness@louthcoco.ie\",\"joe.mcguinness@louthcoco.ie\")","v":"joe.mcguinness@louthcoco.ie"}]
[]
[null,"Ait na nDaoine Comm Dev Project","042 932 6645","http://tinyurl.com/c8vao5d","Tony Jordan",{"$f":"HYPERLINK(\"mailto:tonyjordan@aitnadaoine.com\",\"tonyjordan@aitnadaoine.com\")","v":"tonyjordan@aitnadaoine.com"}]
[]
[]
["MAYO","Mayo North East Leader Partnership","094 9256745",{"$f":"HYPERLINK(\"http://www.mayonortheast.com\",\"www.mayonortheast.com\")","v":"www.mayonortheast.com"},null,null,"FB/Twitter/Ytube"]
[{"$nulls":4},"Dolores McNicholas",{"$f":"HYPERLINK(\"mailto:dmcnicholas@mayonortheast.com\",\"dmcnicholas@mayonortheast.com\")","v":"dmcnicholas@mayonortheast.com"}]
[{"$nulls":4},"Niall Culkin",{"$f":"HYPERLINK(\"mailto:niallculkin@mayonortheast.com\",\"niallculkin@mayonortheast.com\")","v":"niallculkin@mayonortheast.com"}]
[{"$nulls":4},"James Golden",{"$f":"HYPERLINK(\"mailto:jamesgolden@mayonortheast.com\",\"jamesgolden@mayonortheast.com\")","v":"jamesgolden@mayonortheast.com"}]
[{"$nulls":4},"Breandan O'Shea",{"$f":"HYPERLINK(\"mailto:brendanoshea@mnelp.com\",\"brendanoshea@mnelp.com\")","v":"brendanoshea@mnelp.com"}]
[]
[null,"South West Mayo Dev. Company","098 41950",{"$f":"HYPERLINK(\"http://www.southmayo.com\",\"www.southmayo.com\")","v":"www.southmayo.com"}]
[null,null,null,{"$f":"HYPERLINK(\"http://southmayo.com/index.php/links\",\"http://southmayo.com/index.php/links\")","v":"http://southmayo.com/index.php/links"}," "]
[null,null,null,{"$f":"HYPERLINK(\"http://southmayo.com/index.php/contact-us\",\"http://southmayo.com/index.php/contact-us\")","v":"http://southmayo.com/index.php/contact-us"},"Maria McHale",{"$f":"HYPERLINK(\"mailto:info@southmayo.com\",\"info@southmayo.com\")","v":"info@southmayo.com"}]
[{"$nulls":4},"Catherine McCloskey"]
[{"$nulls":4},"Tom Carolan ",{"$f":"HYPERLINK(\"mailto:rss@southmayo.com\",\"rss@southmayo.com\")","v":"rss@southmayo.com"}]
[null,"Castlebar Community Groups",null,{"$f":"HYPERLINK(\"http://www.castlebar.ie/Community_Groups/\",\"http://www.castlebar.ie/Community_Groups/\")","v":"http://www.castlebar.ie/Community_Groups/"}," "]
[null,"Castlebar Community Directory",null,{"$f":"HYPERLINK(\"http://community.castlebar-mayo.tel/\",\"http://community.castlebar-mayo.tel/\")","v":"http://community.castlebar-mayo.tel/"}," "]
[{"$nulls":4}," "]
[null,"Mayo County Council /Comm Dev",null,{"$f":"HYPERLINK(\"http://www.mayococo.ie/en/Services/CommunityandIntegratedDevelopment/\",\"http://www.mayococo.ie/en/Services/CommunityandIntegratedDevelopment/\")","v":"http://www.mayococo.ie/en/Services/CommunityandIntegratedDevelopment/"}," "]
[]
[null,"Mayo County Council (SICAP)","094 902 444",{"$f":"HYPERLINK(\"http://www.mayococo.ie\",\"www.mayococo.ie\")","v":"www.mayococo.ie"},"Declan Turnbull",{"$f":"HYPERLINK(\"mailto:dturnbull@mayococo.ie\",\"dturnbull@mayococo.ie\")","v":"dturnbull@mayococo.ie"}]
[]
[null,"Mayo Public Participation Network",null,{"$f":"HYPERLINK(\"http://mayoppn.net/\",\"http://mayoppn.net/\")","v":"http://mayoppn.net/"},null,null,"FB"]
[]
[null,"Mayo/Sligo/Leitrim Services Directory",null,{"$f":"HYPERLINK(\"http://mayosligoleitrim.etb.ie/latest-news/launch-sligo-leitrim-services-directory-website/\",\"http://mayosligoleitrim.etb.ie/latest-news/launch-sligo-leitrim-services-directory-website/\")","v":"http://mayosligoleitrim.etb.ie/latest-news/launch-sligo-leitrim-services-directory-website/"}," "]
[]
[null,"Claremorris Women's Group","094 936 2096",null,"Mary Carey",{"$f":"HYPERLINK(\"mailto:managercuram@eircom.net\",\"managercuram@eircom.net\")","v":"managercuram@eircom.net"},"FB"]
[]
[null,"Iorras Le Cheile","097 20828",{"$f":"HYPERLINK(\"http://www.iorraslecheile.ie/\",\"http://www.iorraslecheile.ie/\")","v":"http://www.iorraslecheile.ie/"},"Rose Walsh",{"$f":"HYPERLINK(\"mailto:erriscdp@eircom.net\",\"erriscdp@eircom.net\")","v":"erriscdp@eircom.net"}]
[]
[]
[]
[null,"Clare Island Dev Company","098 26525",{"$f":"HYPERLINK(\"http://www.clareisland.ie/cliara-development-company-development-office/\",\"http://www.clareisland.ie/cliara-development-company-development-office/\")","v":"http://www.clareisland.ie/cliara-development-company-development-office/"},"Donal O'Shea",{"$f":"HYPERLINK(\"mailto:cliaracdp@eircom.net\",\"cliaracdp@eircom.net\")","v":"cliaracdp@eircom.net"}]
[]
["MEATH","Meath Partnerships ","046 9280790",{"$f":"HYPERLINK(\"http://www.meathpartnership.ie\",\"www.meathpartnership.ie\")","v":"www.meathpartnership.ie"},"Barbara (Rural Social Scheme)",{"$f":"HYPERLINK(\"mailto:info@meathpartnership.ie\",\"info@meathpartnership.ie\")","v":"info@meathpartnership.ie"}]
[{"$nulls":4},"Fiona ( Men's Sheds) "]
[{"$nulls":4},"Kay (Later Life Network)"]
[]
[null,"Meath Public Participation Network","046 9097400",{"$f":"HYPERLINK(\"http://www.meathppn.ie\",\"www.meathppn.ie\")","v":"www.meathppn.ie"},null,{"$f":"HYPERLINK(\"mailto:meathppn@meathcoco.ie\",\"meathppn@meathcoco.ie\")","v":"meathppn@meathcoco.ie"}]
[]
[null,"Meath County Council (SICAP)","046 909 7000",{"$f":"HYPERLINK(\"http://www.meathcoco.ie\",\"www.meathcoco.ie\")","v":"www.meathcoco.ie"},"Barry Lynch",{"$f":"HYPERLINK(\"mailto:barry.lynch@meathcoco.ie\",\"barry.lynch@meathcoco.ie\")","v":"barry.lynch@meathcoco.ie"}]
[{"$nulls":5},{"$f":"HYPERLINK(\"mailto:customerservice@meathcoco.ie\",\"customerservice@meathcoco.ie\")","v":"customerservice@meathcoco.ie"}]
[null,"Community Org & Svcs in Navan ",null,{"$f":"HYPERLINK(\"http://www.community-services.community.navan.tel\",\"www.community-services.community.navan.tel\")","v":"www.community-services.community.navan.tel"}," "]
[]
["MONAGHAN","Monaghan Integrated Dev","042 9749500",{"$f":"HYPERLINK(\"http://www.midl.ie\",\"www.midl.ie\")","v":"www.midl.ie"},"Francis McCarron",{"$f":"HYPERLINK(\"mailto:fmccarron@midl.ie\",\"fmccarron@midl.ie\")","v":"fmccarron@midl.ie"},"FB/Twitter"]
[null,null,"042 979573",{"$f":"HYPERLINK(\"http://www.midl.ie/index.php/community-development?id=30\",\"http://www.midl.ie/index.php/community-development?id=30\")","v":"http://www.midl.ie/index.php/community-development?id=30"},"Mary O'Rourke",{"$f":"HYPERLINK(\"mailto:morourke@midl.ie\",\"morourke@midl.ie\")","v":"morourke@midl.ie"}]
[]
[null,"Teach Na Daoine, Family Resource Ctr","047 71398",{"$f":"HYPERLINK(\"http://www.teachnadaoinefrc.com\",\"www.teachnadaoinefrc.com\")","v":"www.teachnadaoinefrc.com"},"Bill Goggins",{"$f":"HYPERLINK(\"mailto:info@teachnadaoine.com\",\"info@teachnadaoine.com\")","v":"info@teachnadaoine.com"}]
[]
[null,"Monoghan Community Links ",null,{"$f":"HYPERLINK(\"http://www.midl.ie/index.php/links\",\"http://www.midl.ie/index.php/links\")","v":"http://www.midl.ie/index.php/links"},"Michael Donohoe"]
[{"$nulls":4},"Sean Guinan "]
[{"$nulls":4},"John Toland "]
[]
[]
[null,"Monoghan Public Participation Network ","047 73724",{"$f":"HYPERLINK(\"https://ppnmonaghan.ie/ppn-meetings/secretariat/\",\"https://ppnmonaghan.ie/ppn-meetings/secretariat/\")","v":"https://ppnmonaghan.ie/ppn-meetings/secretariat/"}," ",null,"FB/Twitter"]
[]
[null,"Monaghan County Council (SICAP)","047 30500","http://monaghan-county-council.monaghan.tel/","Paul Clifford",{"$f":"HYPERLINK(\"mailto:pclifford@monaghancoco.ie\",\"pclifford@monaghancoco.ie\")","v":"pclifford@monaghancoco.ie"}]
[{"$nulls":5},{"$f":"HYPERLINK(\"mailto:info@monaghancoco.ie\",\"info@monaghancoco.ie\")","v":"info@monaghancoco.ie"}]
[]
[null,"Blayney Blades (Women's Network)","042 9753410",{"$f":"HYPERLINK(\"http://www.blaneyblades.com\",\"www.blaneyblades.com\")","v":"www.blaneyblades.com"},"Olive Boldger",{"$f":"HYPERLINK(\"mailto:blaneyblades@gmail.com\",\"blaneyblades@gmail.com\")","v":"blaneyblades@gmail.com"},"FB"]
[{"$nulls":4},"Lorainne Cunningham"]
[null,"Dochas for Women","047 71640",null,"Ursula McKenna",{"$f":"HYPERLINK(\"mailto:docasforwomen@eircom.net\",\"docasforwomen@eircom.net\")","v":"docasforwomen@eircom.net"},"FB"]
[]
[null,"Cavan & Monaghan Community Area Svcs",null,{"$f":"HYPERLINK(\"http://www.camcas.ie/about-us/\",\"www.camcas.ie/about-us/\")","v":"www.camcas.ie/about-us/"},"Ann McCarren ",{"$f":"HYPERLINK(\"mailto:Info@camcas.ie\",\"Info@camcas.ie\")","v":"Info@camcas.ie"},"FB"]
[null,"West Cavan",null,null,"Frankei McMorrow"]
[null,"North Monaghan ",null,null,"Frank Smith"]
[null,"East Cavan",null,null,"John Michael O'Donoghue "]
[]
[null,"Drumlin Comm Dev Project","042 9662958",{"$f":"HYPERLINK(\"http://www.drumlincdp.com\",\"www.drumlincdp.com\")","v":"www.drumlincdp.com"},"Mary O'Rourke",{"$f":"HYPERLINK(\"mailto:info@drumlincdp.com\",\"info@drumlincdp.com\")","v":"info@drumlincdp.com"}]
[]
["OFFALY","Offaly Local Development Co",null,{"$f":"HYPERLINK(\"http://www.offalyldc.ie\",\"www.offalyldc.ie\")","v":"www.offalyldc.ie"},"Breda Stweart (SICAP)"," info@offalyldc.ie"]
[null,"Tullamore ","057 9352467/9322 850",null,"Rosine Lennon (Rural Dev)"]
[null,"Edenderry","046 9732 688",null,"John Moran"]
[null,"Banagher ","057 9151 622",null,"Pauline Hoctor"]
[null,"Birr","057 9123 940",null,"Sarah Kennedy "]
[]
[" ","Offaly  County Council (Public Participation Network)","057 9346800",{"$f":"HYPERLINK(\"http://www.offaly.ie/eng/Services/Community_and_Enterprise/\",\"http://www.offaly.ie/eng/Services/Community_and_Enterprise/\")","v":"http://www.offaly.ie/eng/Services/Community_and_Enterprise/"}," ",{"$f":"HYPERLINK(\"mailto:community@offalycoco.ie\",\"community@offalycoco.ie\")","v":"community@offalycoco.ie"}]
[null," "]
[null,"Offaly County Council (SICAP)","057 9346800",{"$f":"HYPERLINK(\"http://www.offalycoco.ie\",\"www.offalycoco.ie\")","v":"www.offalycoco.ie"},"Declan Kirrane",{"$f":"HYPERLINK(\"mailto:dkirrane@offalycoco.ie\",\"dkirrane@offalycoco.ie\")","v":"dkirrane@offalycoco.ie"}]
[]
[null,"Offaly Community Directory ",null,{"$f":"HYPERLINK(\"http://www.offalycitizensinformation.ie/contactlist\",\"http://www.offalycitizensinformation.ie/contactlist\")","v":"http://www.offalycitizensinformation.ie/contactlist"}," "]
[]
["ROSCOMMON","Roscommon Leader Partnership","090 6630252",{"$f":"HYPERLINK(\"http://www.rdc.ie\",\"www.rdc.ie\")","v":"www.rdc.ie"},null,{"$f":"HYPERLINK(\"mailto:info@rosleaderpartnership.ie\",\"info@rosleaderpartnership.ie\")","v":"info@rosleaderpartnership.ie"},"FB/Twitter/L-in"]
[{"$nulls":4},"Claire Carty",{"$f":"HYPERLINK(\"mailto:claire@rdc.ie\",\"claire@rdc.ie\")","v":"claire@rdc.ie"}]
[{"$nulls":4},"Noel Connolly",{"$f":"HYPERLINK(\"mailto:noel@rld.ie\",\"noel@rld.ie\")","v":"noel@rld.ie"}]
[{"$nulls":4},"Anthony Dockery",{"$f":"HYPERLINK(\"mailto:anthony@rldc.ie\",\"anthony@rldc.ie\")","v":"anthony@rldc.ie"}]
[{"$nulls":4},"Bridie Duffy",{"$f":"HYPERLINK(\"mailto:bridie@rld.ie\",\"bridie@rld.ie\")","v":"bridie@rld.ie"}]
[{"$nulls":4},"TeresaO'Brien",{"$f":"HYPERLINK(\"mailto:teresa@rldc.ie\",\"teresa@rldc.ie\")","v":"teresa@rldc.ie"}]
[]
[null,"North West Roscommon CDP","094 9862565",{"$f":"HYPERLINK(\"http://www.northwestroscommoncdp.ie/\",\"http://www.northwestroscommoncdp.ie/\")","v":"http://www.northwestroscommoncdp.ie/"},"Patricia Madden",{"$f":"HYPERLINK(\"mailto:nwrosccdp@eircom.net\",\"nwrosccdp@eircom.net\")","v":"nwrosccdp@eircom.net"}]
[]
[]
[null,"Roscommon Public Participation Network","090 6665735",{"$f":"HYPERLINK(\"http://www.roscommoncoco.ie/en/Services/Community/Public_Participation_Network/\",\"http://www.roscommoncoco.ie/en/Services/Community/Public_Participation_Network/\")","v":"http://www.roscommoncoco.ie/en/Services/Community/Public_Participation_Network/"},"Brenda McNicholas",{"$f":"HYPERLINK(\"mailto:info@roscommonppn.ie\",\"info@roscommonppn.ie\")","v":"info@roscommonppn.ie"}]
[]
[null,"Roscommon County Council","090 6637100",{"$f":"HYPERLINK(\"http://www.roscommoncoco.ie\",\"www.roscommoncoco.ie\")","v":"www.roscommoncoco.ie"},"Pat Murtagh",{"$f":"HYPERLINK(\"mailto:pmurtagh@roscommoncoco.ie\",\"pmurtagh@roscommoncoco.ie\")","v":"pmurtagh@roscommoncoco.ie"}," "]
[]
[null,"Roscommon Directory of Community Groups ",null,{"$f":"HYPERLINK(\"http://community.roscommon.tel/\",\"http://community.roscommon.tel/\")","v":"http://community.roscommon.tel/"}]
[]
[null,"Roscommon Groups & Societies ",null,{"$f":"HYPERLINK(\"http://www.mytown.ie/roscommon/Groups-Societies\",\"http://www.mytown.ie/roscommon/Groups-Societies\")","v":"http://www.mytown.ie/roscommon/Groups-Societies"}," ",null,"FB/Twitter "]
[]
[null,"Roscommon Women's Network","094 9621690",{"$f":"HYPERLINK(\"http://www.rwn.ie\",\"www.rwn.ie\")","v":"www.rwn.ie"},"Nora Fahy",{"$f":"HYPERLINK(\"mailto:info@rwn.ie\",\"info@rwn.ie\")","v":"info@rwn.ie"},"FB"]
[]
["SLIGO","Sligo Leader Partnerhsip Co.","071 9141138",{"$f":"HYPERLINK(\"http://www.sligoleader.ie\",\"www.sligoleader.ie\")","v":"www.sligoleader.ie"},null,{"$f":"HYPERLINK(\"mailto:info@sligoleader.com\",\"info@sligoleader.com\")","v":"info@sligoleader.com"}]
[{"$nulls":4},"June Murphy"]
[{"$nulls":4},"David Conlon "]
[{"$nulls":4},"Sean Gordan"]
[{"$nulls":4},"Phil Brennan (Ms) "]
[{"$nulls":4},"Karen Gabbidon"]
[{"$nulls":4},"Jonathon May"]
[null,"Slogo Northside Comm Partnership","071 9147097",{"$f":"HYPERLINK(\"http://sligonorthside.com/\",\"http://sligonorthside.com/\")","v":"http://sligonorthside.com/"},"Ann Donegan",{"$f":"HYPERLINK(\"mailto:sligonorthside@hotmail.com\",\"sligonorthside@hotmail.com\")","v":"sligonorthside@hotmail.com"},"FB/Twitter"]
[]
[null,"Community Lough Arrow Social Project","071 916 5577","http://www.claspsligo.com/","Eamonn Haran",{"$f":"HYPERLINK(\"mailto:claspcdp@eircom.net\",\"claspcdp@eircom.net\")","v":"claspcdp@eircom.net"},"FB/Twitter"]
[]
[]
[null,"Sligo Public Participation Network","071 911 4426/4429/2230",{"$f":"HYPERLINK(\"http://www.sligoppn.com\",\"www.sligoppn.com\")","v":"www.sligoppn.com"},null,null,"FB/Twitter "]
[]
[null,"Sligo Directory of Community Services",null,{"$f":"HYPERLINK(\"http://www.sligofree.com/sligo-business-directory/charities-and-organisations/community-services.html\",\"http://www.sligofree.com/sligo-business-directory/charities-and-organisations/community-services.html\")","v":"http://www.sligofree.com/sligo-business-directory/charities-and-organisations/community-services.html"}," "]
[null,"Sligo Support Services ",null,{"$f":"HYPERLINK(\"http://www.sligoleitrimdirectory.ie/services-list/category/support-services/support-groups/\",\"http://www.sligoleitrimdirectory.ie/services-list/category/support-services/support-groups/\")","v":"http://www.sligoleitrimdirectory.ie/services-list/category/support-services/support-groups/"}," "]
[null,"Mayo/Sligo/Leitrim Service Directory",null,{"$f":"HYPERLINK(\"http://mayosligoleitrim.etb.ie/latest-news/launch-sligo-leitrim-services-directory-website/\",\"http://mayosligoleitrim.etb.ie/latest-news/launch-sligo-leitrim-services-directory-website/\")","v":"http://mayosligoleitrim.etb.ie/latest-news/launch-sligo-leitrim-services-directory-website/"}," "]
[]
[null,"Sligo County Council (SICAP)","071 9111111","sligococo.ie","Dorothy Clarke",{"$f":"HYPERLINK(\"mailto:dclarke@sligococo.ie\",\"dclarke@sligococo.ie\")","v":"dclarke@sligococo.ie"}]
[]
[]
["TIPPERARY","North Tipperary Leader Partnership","067 56676",{"$f":"HYPERLINK(\"http://www.ntlp.ie\",\"www.ntlp.ie\")","v":"www.ntlp.ie"},null,null,"FB/Twitter "]
[null,"Nenagh",null,null,"Gearoid Fitzgibbon",{"$f":"HYPERLINK(\"mailto:gfitzgibbon@ntlp.ie\",\"gfitzgibbon@ntlp.ie\")","v":"gfitzgibbon@ntlp.ie"}]
[null,"Thurles",null,null,"Breda Ryan",{"$f":"HYPERLINK(\"mailto:bryan@ntlp.ie\",\"bryan@ntlp.ie\")","v":"bryan@ntlp.ie"}]
[null,"Roscrea",null,null,"Sandra Smith",{"$f":"HYPERLINK(\"mailto:ssmith@ntlp.ie\",\"ssmith@ntlp.ie\")","v":"ssmith@ntlp.ie"}]
[null,"North Tipperary",null,null,"Mary O'Dwyer ",{"$f":"HYPERLINK(\"mailto:modwyer@ntlp.ie\",\"modwyer@ntlp.ie\")","v":"modwyer@ntlp.ie"}]
[null,"Roscrea",null,null,"Aideen Connolly",{"$f":"HYPERLINK(\"mailto:aconnolly@ntlp.ie\",\"aconnolly@ntlp.ie\")","v":"aconnolly@ntlp.ie"}]
[]
[null,"North Tipperary Community Services","067 31800",{"$f":"HYPERLINK(\"http://www.northtipperarycommunityservices.com/#/community-development/4548911367\",\"http://www.northtipperarycommunityservices.com/#/community-development/4548911367\")","v":"http://www.northtipperarycommunityservices.com/#/community-development/4548911367"}," ",{"$f":"HYPERLINK(\"mailto:ntcs@eircom.net\",\"ntcs@eircom.net\")","v":"ntcs@eircom.net"}]
[null,"North Tipperary Community Services ",null,{"$f":"HYPERLINK(\"http://www.hse.ie/eng/services/list/4/Mental_Health_Services/healthlines/VolGrp/NTipp/COMM_SERV.html\",\"http://www.hse.ie/eng/services/list/4/Mental_Health_Services/healthlines/VolGrp/NTipp/COMM_SERV.html\")","v":"http://www.hse.ie/eng/services/list/4/Mental_Health_Services/healthlines/VolGrp/NTipp/COMM_SERV.html"}," "]
[]
[null,"Public Participation Networks Tipperary",null,"http://www.tipperarycoco.ie/community-and-economic-development/tipperary-public-participation-network"," ",null,"FB/Twitter "]
[]
[null,"Tipperary County Council (SICAP)","076 106 5000",{"$f":"HYPERLINK(\"http://www.tipperarycoco.ie\",\"www.tipperarycoco.ie\")","v":"www.tipperarycoco.ie"},"Sinead Carr",{"$f":"HYPERLINK(\"mailto:sinead.carr@southtippcoco.ie\",\"sinead.carr@southtippcoco.ie\")","v":"sinead.carr@southtippcoco.ie"}]
[]
[null,"South Tipperary Community Groups",null,{"$f":"HYPERLINK(\"http://www.tipperarycoco.ie/community-and-economic-development/south-tipperary-community-and-voluntary-forum\",\"http://www.tipperarycoco.ie/community-and-economic-development/south-tipperary-community-and-voluntary-forum\")","v":"http://www.tipperarycoco.ie/community-and-economic-development/south-tipperary-community-and-voluntary-forum"}," "]
[]
[null,"South Tipperary Development Company","052 7442652",{"$f":"HYPERLINK(\"http://www.stdc.ie\",\"www.stdc.ie\")","v":"www.stdc.ie"},null,{"$f":"HYPERLINK(\"mailto:info@stdc.ie\",\"info@stdc.ie\")","v":"info@stdc.ie"},"FB/Twitter"]
[{"$nulls":4},"Phil Shanahan "]
[{"$nulls":4},"Hilary Dilworth "]
[{"$nulls":4},"Tracy Ryan "]
[{"$nulls":4},"Mary Barry Guerin "]
[{"$nulls":4},"Michael Bedley "]
[null,"South Tipperary Community Groups",null,{"$f":"HYPERLINK(\"http://www.tipperarycoco.ie/community-and-economic-development/south-tipperary-community-and-voluntary-forum\",\"http://www.tipperarycoco.ie/community-and-economic-development/south-tipperary-community-and-voluntary-forum\")","v":"http://www.tipperarycoco.ie/community-and-economic-development/south-tipperary-community-and-voluntary-forum"}," "]
[]
["WATERFORD","Waterford Area Partnership","051 841740",{"$f":"HYPERLINK(\"http://www.wap.ie\",\"www.wap.ie\")","v":"www.wap.ie"},null,{"$f":"HYPERLINK(\"mailto:info@wap.ie\",\"info@wap.ie\")","v":"info@wap.ie"},"FB/Twitter"]
[]
[null,"Waterford Public Participation Network","058 21198 / 086 1723298",{"$f":"HYPERLINK(\"http://www.waterfordlife.ie/ppn/\",\"www.waterfordlife.ie/ppn/\")","v":"www.waterfordlife.ie/ppn/"},"Muriel Tobin ",{"$f":"HYPERLINK(\"mailto:mtobin@waterfordcouncil.ie\",\"mtobin@waterfordcouncil.ie\")","v":"mtobin@waterfordcouncil.ie"},"FB/Twitter"]
[null,null,"051 849 597/ 087 9809985",null,"John Hawkes",{"$f":"HYPERLINK(\"mailto:jhawkes@waterfordcouncil.ie\",\"jhawkes@waterfordcouncil.ie\")","v":"jhawkes@waterfordcouncil.ie"}]
[]
[null,"Waterford City/County (SICAP)","0761 102020",{"$f":"HYPERLINK(\"http://www.waterfordcouncil.ie\",\"www.waterfordcouncil.ie\")","v":"www.waterfordcouncil.ie"},"Lar Power",{"$f":"HYPERLINK(\"mailto:lpower@waterfordcouncil.ie\",\"lpower@waterfordcouncil.ie\")","v":"lpower@waterfordcouncil.ie"}]
[]
[null,"Waterford City Community Groups",null,{"$f":"HYPERLINK(\"http://www.mytown.ie/waterford-city/Groups-Societies/10\",\"http://www.mytown.ie/waterford-city/Groups-Societies/10\")","v":"http://www.mytown.ie/waterford-city/Groups-Societies/10"}," "]
[]
[null,"Listmore Community Directory",null,{"$f":"HYPERLINK(\"http://www.lismore-ireland.com/community-directory\",\"http://www.lismore-ireland.com/community-directory\")","v":"http://www.lismore-ireland.com/community-directory"}," ",null,"FB/Twitter "]
[]
[null,"Dungargan  Community Directory",null,{"$f":"HYPERLINK(\"http://www.dungarvanchamber.ie/directory/46-community-development/177-county-waterford-community-forum-ltd\",\"http://www.dungarvanchamber.ie/directory/46-community-development/177-county-waterford-community-forum-ltd\")","v":"http://www.dungarvanchamber.ie/directory/46-community-development/177-county-waterford-community-forum-ltd"}," ",null,"FB/Twitter "]
[]
[null,"Waterford Leader Partnership","058 54646",{"$f":"HYPERLINK(\"http://www.wlp.ie\",\"www.wlp.ie\")","v":"www.wlp.ie"},null,{"$f":"HYPERLINK(\"mailto:info@wlp.ie\",\"info@wlp.ie\")","v":"info@wlp.ie"},"FB"]
[null,null,"058 51505 / 087 2322062",null,"Clare Connors",{"$f":"HYPERLINK(\"mailto:clare.connors@wlp.ie\",\"clare.connors@wlp.ie\")","v":"clare.connors@wlp.ie"}]
[null,null,"05858026/ 086 0206005",null,"Vincent Mernin",{"$f":"HYPERLINK(\"mailto:vincent.mernin@wlp.ie\",\"vincent.mernin@wlp.ie\")","v":"vincent.mernin@wlp.ie"}]
[]
[null,"Waterford Women's Centre","051 351918",null,"Breda Murphy",null,"FB/Twitter"]
[{"$nulls":4},"Kate Crotty"]
["WESTMEATH","Westmeath Community Development","044 9348571",{"$f":"HYPERLINK(\"http://www.westcd.ie\",\"www.westcd.ie\")","v":"www.westcd.ie"},null,null,"FB/Twitter"]
[null,null,"090 64 94555",null,"Linda-Jo Quinn",{"$f":"HYPERLINK(\"mailto:ljquinn@westcd.ie\",\"ljquinn@westcd.ie\")","v":"ljquinn@westcd.ie"}]
[{"$nulls":4},"Seamus McKenna",{"$f":"HYPERLINK(\"mailto:smckenna@westcd.ie\",\"smckenna@westcd.ie\")","v":"smckenna@westcd.ie"}]
[{"$nulls":4},"Tony McCormack",{"$f":"HYPERLINK(\"mailto:tmccormack@westcd.ie\",\"tmccormack@westcd.ie\")","v":"tmccormack@westcd.ie"}]
[]
[null,"Westmeath Public Participation Network","044 933 2000",{"$f":"HYPERLINK(\"http://www.westmeathcoco.ie/en/ourservices/communitydevelopment/publicparticipationnetwork/\",\"http://www.westmeathcoco.ie/en/ourservices/communitydevelopment/publicparticipationnetwork/\")","v":"http://www.westmeathcoco.ie/en/ourservices/communitydevelopment/publicparticipationnetwork/"}," "]
[]
[null,"Westmeath County Council (SICAP)","044 933 2000",{"$f":"HYPERLINK(\"http://www.wesstmeathcoco.ie\",\"www.wesstmeathcoco.ie\")","v":"www.wesstmeathcoco.ie"},"Hugh O'Reill",{"$f":"HYPERLINK(\"mailto:horeilly@westmeathcoco.ie\",\"horeilly@westmeathcoco.ie\")","v":"horeilly@westmeathcoco.ie"}]
[]
[null,"Westmeath community development ","044 933 2000",{"$f":"HYPERLINK(\"http://www.westmeathcoco.ie/en/ourservices/communitydevelopment/\",\"http://www.westmeathcoco.ie/en/ourservices/communitydevelopment/\")","v":"http://www.westmeathcoco.ie/en/ourservices/communitydevelopment/"}," "]
[]
[null,"Women's Community Projects Mullingar","044 9344301",{"$f":"HYPERLINK(\"http://www.womenscommunityprojects.ie/\",\"www.womenscommunityprojects.ie/\")","v":"www.womenscommunityprojects.ie/"},"Catherine Leonard",{"$f":"HYPERLINK(\"mailto:cleonard@wcpmullingar.ie\",\"cleonard@wcpmullingar.ie\")","v":"cleonard@wcpmullingar.ie"},"FB"]
[null,null,"044 9343432"]
[]
[null,"Irish Rural Link","090 6482744","www.irishrurallink","Seamus Boland (CEO)",{"$f":"HYPERLINK(\"mailto:seamus@irishrurallink.ie\",\"seamus@irishrurallink.ie\")","v":"seamus@irishrurallink.ie"},"Twitter"]
[{"$nulls":4},"Maria Pettit (Manager)",{"$f":"HYPERLINK(\"mailto:maria@irishrurallink.ie\",\"maria@irishrurallink.ie\")","v":"maria@irishrurallink.ie"}]
[]
["WEXFORD","Wexford Local Development","053 9155800",{"$f":"HYPERLINK(\"http://www.wld.ie/\",\"http://www.wld.ie/\")","v":"http://www.wld.ie/"},"Marie-Louise Byrne",{"$f":"HYPERLINK(\"mailto:mbyrne@wld.ie\",\"mbyrne@wld.ie\")","v":"mbyrne@wld.ie"}," FB/Twitter"]
[null,"New Ross","053 9155885"]
[null,"Gorey","052 9155852",null,null,{"$f":"HYPERLINK(\"mailto:info@wld.ie\",\"info@wld.ie\")","v":"info@wld.ie"}]
[null,"Enniscorthy","053 9155864",null,"Sheena Bolger",{"$f":"HYPERLINK(\"mailto:sbolger@wld.ie\",\"sbolger@wld.ie\")","v":"sbolger@wld.ie"}]
[null," "," ",null,"Fiona Byrne",{"$f":"HYPERLINK(\"mailto:fnolan@wld.ie\",\"fnolan@wld.ie\")","v":"fnolan@wld.ie"}]
[{"$nulls":4},"Eileen Furlong",{"$f":"HYPERLINK(\"mailto:efurlong@wld.ie\",\"efurlong@wld.ie\")","v":"efurlong@wld.ie"}]
[null,"Wexford local Community Dev Committee",null,{"$f":"HYPERLINK(\"http://www.wexford.ie/wex/Departments/CommunityDevelopment/WexfordLocalCommunityDevelopmentCommitteeLCDC/\",\"http://www.wexford.ie/wex/Departments/CommunityDevelopment/WexfordLocalCommunityDevelopmentCommitteeLCDC/\")","v":"http://www.wexford.ie/wex/Departments/CommunityDevelopment/WexfordLocalCommunityDevelopmentCommitteeLCDC/"}," "]
[]
[null,"Wexford Community Network",null,{"$f":"HYPERLINK(\"http://www.locallife.ie/county-wexford/community.asp\",\"http://www.locallife.ie/county-wexford/community.asp\")","v":"http://www.locallife.ie/county-wexford/community.asp"}," "]
[]
[null,"Wexford County Council (SICAP) ","053 919 6000",{"$f":"HYPERLINK(\"http://www.wexfordcoco.ie\",\"www.wexfordcoco.ie\")","v":"www.wexfordcoco.ie"},"Ger Mackey",{"$f":"HYPERLINK(\"mailto:ger.mackey@wexfordcoco.ie\",\"ger.mackey@wexfordcoco.ie\")","v":"ger.mackey@wexfordcoco.ie"}]
[{"$nulls":5},{"$f":"HYPERLINK(\"mailto:postmaster@esxfordcoco.ie\",\"postmaster@esxfordcoco.ie\")","v":"postmaster@esxfordcoco.ie"}]
[]
[null,"Access 2000 Wexford","053 9121200",{"$f":"HYPERLINK(\"http://www.access2000wexford.com\",\"www.access2000wexford.com\")","v":"www.access2000wexford.com"},"Marian Donnegan",{"$f":"HYPERLINK(\"mailto:marianaccesswex@eircom.net\",\"marianaccesswex@eircom.net\")","v":"marianaccesswex@eircom.net"},"FB"]
[{"$nulls":4},"Margaret Cullen"]
["WICKLOW","County Wicklow Partnership","0402 20955 (Arklow) ",{"$f":"HYPERLINK(\"http://www.wicklowpartnership.ie\",\"www.wicklowpartnership.ie\")","v":"www.wicklowpartnership.ie"},"Francis Creegan",{"$f":"HYPERLINK(\"mailto:fcreegan@wicklowpartnership.ie\",\"fcreegan@wicklowpartnership.ie\")","v":"fcreegan@wicklowpartnership.ie"},"FB"]
[{"$nulls":4},"Dympna Boffey",{"$f":"HYPERLINK(\"mailto:dboffey@wicklowpartnership.ie\",\"dboffey@wicklowpartnership.ie\")","v":"dboffey@wicklowpartnership.ie"}]
[{"$nulls":4},"Alison Healy",{"$f":"HYPERLINK(\"mailto:ahealy@wicklowpartnership.ie\",\"ahealy@wicklowpartnership.ie\")","v":"ahealy@wicklowpartnership.ie"}]
[{"$nulls":4},"Liz Dunne",{"$f":"HYPERLINK(\"mailto:idunne@wicklowpartnership.ie\",\"idunne@wicklowpartnership.ie\")","v":"idunne@wicklowpartnership.ie"}]
[{"$nulls":4},"Aisling Byrne ",{"$f":"HYPERLINK(\"mailto:aisbyrne@wicklowpartnership.ie\",\"aisbyrne@wicklowpartnership.ie\")","v":"aisbyrne@wicklowpartnership.ie"}]
[{"$nulls":4},"Shellagh Lennon",{"$f":"HYPERLINK(\"mailto:slennon@wicklowpartnership.ie\",\"slennon@wicklowpartnership.ie\")","v":"slennon@wicklowpartnership.ie"}]
[]
[]
[null,"Wicklow Public Partnership Network",null,{"$f":"HYPERLINK(\"http://www.wicklow.ie/co-wicklow-public-participation-network\",\"http://www.wicklow.ie/co-wicklow-public-participation-network\")","v":"http://www.wicklow.ie/co-wicklow-public-participation-network"}," "]
[]
[null,"Wicklow Local Community Dev Committee",null,{"$f":"HYPERLINK(\"http://www.wicklow.ie/committee-lcdc\",\"http://www.wicklow.ie/committee-lcdc\")","v":"http://www.wicklow.ie/committee-lcdc"}," "]
[]
[null,"wicklow County Council (SICAP)","0404 20100",{"$f":"HYPERLINK(\"http://www.wicklowcoco.ie\",\"www.wicklowcoco.ie\")","v":"www.wicklowcoco.ie"},"Michael Micholson",{"$f":"HYPERLINK(\"mailto:mnicholos@wicklowcoco.ie\",\"mnicholos@wicklowcoco.ie\")","v":"mnicholos@wicklowcoco.ie"}]
[]
[null,"Wicklow Community Directory",null,{"$f":"HYPERLINK(\"https://www.wicklowcommunitydirectory.ie/\",\"https://www.wicklowcommunitydirectory.ie/\")","v":"https://www.wicklowcommunitydirectory.ie/"}," "]
[]
[null,"Bray Area Partnership","01 2868266",{"$f":"HYPERLINK(\"http://www.brayareapartnership.ie\",\"www.brayareapartnership.ie\")","v":"www.brayareapartnership.ie"},null,{"$f":"HYPERLINK(\"mailto:info@brayareapartnership.ie\",\"info@brayareapartnership.ie\")","v":"info@brayareapartnership.ie"},"FB/Twitter "]
[{"$nulls":4},"Jennifer Jones "]
[{"$nulls":4},"Thomas Manley"]
[]
[null,"Bray & North Wicklow Women's Network","01 2760884"]